{"text_format":"1","workbook":"xlsx","n_sheets":3,"sheets":["Form","List","Data"],"not_rendered":{"charts":0,"images":8,"macros":1,"external_links":0,"defined_names":41,"comments":0,"pivot_tables":0},"unopened":[],"bounds":{"document_bytes":16777216,"sheet_cells":100000,"rows_first":2000,"rows_last":500,"rows_between":2000,"halvings":0,"cell_chars":16384,"cell_head_chars":4096},"cells_cut":0,"cells_raw":0,"read":"whole","date_system":"1900"}

{"sheet":"Form","index":0,"n_rows":101,"n_cols":24,"rows_kept":101,"cut":false,"hidden":false,"merged":[[36,2,36,22],[32,6,32,10],[39,8,40,8],[33,2,33,8],[100,1,100,7],[96,1,96,25],[99,9,99,15],[38,2,38,23],[37,2,37,23],[49,13,49,15],[48,13,48,17],[48,12,49,12],[39,15,40,15],[39,3,40,3],[48,2,49,11],[47,2,47,23],[49,16,49,17],[68,2,68,3],[73,2,73,9],[99,1,99,7],[39,2,40,2],[39,9,40,10],[39,12,40,12],[39,13,40,14],[96,27,96,34],[97,27,97,35],[93,6,93,10],[79,1,79,56],[57,2,62,23],[64,23,65,23],[64,20,64,22],[65,20,65,22],[81,1,81,24],[82,1,82,23],[84,1,84,23],[85,1,85,23],[88,1,88,7],[90,2,90,23],[93,1,93,5],[74,16,74,23],[73,10,73,15],[74,10,74,15],[74,7,74,9],[94,1,94,5],[68,21,68,22],[64,2,64,8],[56,2,56,6],[94,6,94,10],[88,9,88,12],[89,9,89,12],[89,1,89,7],[71,2,71,22],[65,12,65,16],[64,9,65,10],[74,2,74,3],[64,17,65,18],[64,12,64,16],[73,16,73,23],[65,2,65,8],[74,4,74,6],[68,7,68,9],[68,16,68,17],[68,11,68,12],[68,13,68,14],[92,2,92,24],[91,2,91,24],[0,0,0,23],[4,2,4,9],[11,11,11,13],[12,11,12,13],[7,2,7,5],[11,2,11,5],[12,2,12,5],[1,0,1,24],[2,0,2,24],[7,21,7,23],[9,21,9,23],[11,21,12,23],[3,18,3,20],[4,18,4,20],[7,18,7,20],[9,18,9,20],[11,18,11,20],[12,6,12,10],[11,14,11,17],[12,18,12,20],[11,6,11,10],[12,14,12,17],[9,2,9,5],[9,6,9,17],[18,2,18,4],[18,11,18,12],[18,13,18,19],[16,6,16,12],[22,2,31,4],[23,15,23,22],[33,9,33,22],[29,16,29,22],[27,17,27,22],[27,15,27,16],[24,15,24,22],[25,15,25,23],[26,15,26,22],[32,16,32,22],[31,16,31,22],[30,6,30,22],[20,2,20,8],[7,6,7,11],[3,22,4,22],[3,23,4,24],[3,21,4,21],[31,6,31,10],[7,16,7,17],[7,12,7,15],[39,22,39,23],[39,21,40,21],[39,16,40,20],[39,4,40,7],[39,11,40,11],[14,2,14,22],[16,2,16,5],[16,13,16,16],[28,6,28,10],[25,6,25,10],[26,6,26,10],[16,17,16,23],[20,9,20,23],[27,6,27,10],[28,16,28,22],[18,21,18,23],[18,5,18,10],[50,2,50,8],[50,9,50,11],[50,13,50,15],[50,16,50,17],[50,18,50,23],[48,18,49,23],[41,4,41,6],[41,9,41,10],[41,13,41,14],[41,16,41,17],[41,18,41,20]]}
[]
["Tree Risk Assessment Form 1 : Tree Group Inspection"]
["樹木風險評估表格1 : 樹群檢查表"]
[null,null,null,null,null,null,null,null,null,null,null,null,null,null,null,null,null,null,"Form 1 Ref. No.:"]
[null,null,"General Information  基本資料 ",null,null,null,null,null,null,null,null,null,null,null,null,null,null,null,"表格1編號:"]
[]
[]
[null,null,"Dept. / Agency 部門 / 機構:",null,null,null,null,null,null,null,null,null,"Inspection Officer 巡查人員:",null,null,null,null,null,"Post 職位:"]
[]
[null,null,"Project / Contract No.工程 /合約編號:",null,null,null,null,null,null,null,null,null,null,null,null,null,null,null,"File Ref. 檔案編號:"]
[]
[null,null,"Date of Inspection",null,null,null,null,null,null,null,null,"Last Inspection Date",null,null,null,null,null,null,"Inspection Frequency"]
[null,null,"巡查日期:",null,null,null,"(dd/mm/yyyy)",null,null,null,null,"上次巡查日期:",null,null,"(dd/mm/yyyy)",null,null,null,"巡查週期:"]
[]
[null,null,"Location Information  位置資料"]
[]
[null,null,"Masterzone Ref.主區編號:",null,null,null,123,null,null,null,null,null,null,"Subzone Ref. 副區編號: "]
[]
[null,null,"Location (English) :\n地點 (英文) : ",null,null,null,null,null,null,null,null,"Location (Chinese) :\n地點 (中文) : ",null,null,null,null,null,null,null,null,"District:\n地區:"]
[]
[null,null,"Tree Risk Management Zone 樹木風險管理地區類別:"]
[]
[null,null,"Location Types\n地點類別:\n(multiple selections allowed \n可選多於一項)"]
[null,null,null,null,null,null,"Roadside landscaped area 路旁綠化地區",null,null,null,null,null,null,null,null,"Government compound 政府建築物"]
[null,null,null,null,null,null,"Public park/recreation venue 公園/康樂場地",null,null,null,null,null,null,null,null,"Unleased/uallocated government land 未批租/未撥用的政府土地"]
[null,null,null,null,null,null,"Planter box 花盆",null,null,null,null,null,null,null,null,"Recreational site/facility inside country park 郊野公園內康樂用地或設施"]
[null,null,null,null,null,null,"Tree Pit/Tree Ring 樹穴/樹圈",null,null,null,null,null,null,null,null,"SIMAR slopes 系統性鑑辨維修責任的斜坡   "]
[null,null,null,null,null,null,"Housing estate 屋邨",null,null,null,null,null,null,null,null,"SIMAR slope ref:"]
[null,null,null,null,null,null,"Central divider 中央分隔帶"]
[null,null,null,null,null,null,"Others (please specify) 其他 (請說明): "]
[]
[]
[]
[null,null,"Nearby Utility Post No. 就近公用設施編號:"]
[]
[]
[null,null,"Tree Information  樹木基本資料"]
[null,null,"The size of a tree group should be defined by location types, such as public parks, SIMAR slopes, tree pits, etc. with due consideration given to the limitations of visual tree assessment. \nNo more than 50 trees shall be included in a Tree Group.\n在決定樹群的大小時，應參照地點類別，如公園、系統性鑑辨維修責任的斜坡、樹穴等，並需考慮目測法的局限，每個樹群不可多於50棵樹。 "]
[null,null,"(A) Triage Trees and Trees Require Remedial Actions or Form 2 Assessment  \n分流樹木及需要進行緩減措施 / 表格 2 評估的樹木"]
[null,null,"TMCP\nTree ID\n樹木\n編號","Dept.\nTree ID\n部門\n樹木\n編號","Tree Species\n樹種 ",null,null,null,"DBH\n(mm)\n胸徑\n(毫米)","Estimated\nTree\nHeight\n(m)\n大約樹高\n(米)",null,"Estimated\nCrown\nSpread\n(m)\n大約樹冠\n闊度\n(米)","Tree Status\n樹木類別","Overall\nTree\nConditions\n整體樹木\n狀況",null,"Triage Colour\n分流顏色","Remedial Action / Form 2 Assessment\n緩減措施 / 表格2評估   ",null,null,null,null,"Anticipated\nCompletion\nDate\n預計完成日期\n(dd/mm/yyyy) ","Reference Coordinates of Tree \n樹木參考座標"]
[null,null,null,null,null,null,null,null,null,null,null,null,null,null,null,null,null,null,null,null,null,null,"\nX","\nY"]
[]
[]
[]
[]
[]
[]
[null,null,"(B) Other Trees (Non-Triage Trees - trees do not need further actions)\n其他樹木（非分流樹木 - 無需進一步行動的樹木）"]
[null,null,"Tree Species\n樹種 ",null,null,null,null,null,null,null,null,null,"App. Quantity of Trees\n大約樹木            數量","Range of Tree Height\n樹高範圍 ",null,null,null,null,"Overall Tree Conditions\n整體樹木狀況"]
[null,null,null,null,null,null,null,null,null,null,null,null,null,"From (m)\n由（米）",null,null,"To (m)\n至（米）"]
[]
[]
[]
[]
[]
[]
[null,null,"Overall Remarks 整體評語"]
[]
[]
[]
[]
[]
[]
[]
[null,null,"Sub-total No. of Trees in Table (A):",null,null,null,null,null,null,{"$f":"COUNTA(OFFSET(TableTree, ,3,,1))","v":0},null,null,"Sub-total No. of Trees in Table (B):",null,null,null,null,{"$f":"SUM(OFFSET(TableOtherTrees, ,12,,1))","v":0},null,null,"Total No. of Trees (A + B) :",null,null,{"$f":"TotalA+TotalB","v":0}]
[null,null,"(A)  表樹木數量小結:",null,null,null,null,null,null,null,null,null,"(B)  表樹木數量小結:",null,null,null,null,null,null,null,"樹木總數 (A + B):"]
[]
[null,null,"Summary of TRIAGE Trees 分流樹木總結"]
[null,null,"Black 黑",null,{"$f":"COUNTIF(INDEX(TableTree,,16), \"=\" & List!V2)","v":0},null,"Red 紅",{"$f":"COUNTIF(INDEX(TableTree,,16), \"=\" & List!V3)","v":0},null,null,null,"Orange 橙",null,{"$f":"COUNTIF(INDEX(TableTree,,16), \"=\" & List!V4)","v":0},null,null,"Yellow 黃",null,{"$f":"COUNTIF(INDEX(TableTree,,16), \"=\" & List!V5)","v":0},null,null,"No Triage colour 無",null,{"$f":"COUNTIF(INDEX(TableTree,,16), \"=\" & List!V6)","v":0}]
[]
[]
[null,null,"Attached Information 附夾資料"]
[]
[null,null,"Attachment Type",null,null,null,null,null,null,null,"Attachment Name",null,null,null,null,null,"Description"]
[]
[]
[]
[]
[]
[null,"Declaration 聲明"]
[]
[null,"I, the Inspection Officer for the above TRA Form 1, confirm that I have inspected the tree group(s) at the specified date with due diligence, and the information given in the Form(s) is truly reflecting what I observed on site."]
[null,"本人作為以上樹群檢查表格1的巡查人員，確認本人已在本表格所列日期，謹慎小心完成有關樹群的檢查，而本表格上填入的資料均真確無訛地反映本人在現場觀察所得。"]
[]
[null,"My academic, professional, training records and work experience met the requirements of Inspection Officer specified in the TRAM Guidelines."]
[null,"本人的學術、專業、培訓紀錄及相關工作經驗均符合「樹木風險評估及管理安排」指引中對巡查人員的要求。"]
[]
[]
[null,"Name of Inspection Officer: ",null,null,null,null,null,null,null,{"$f":"IF(ISBLANK(InspOfficer), \"\", InspOfficer)","v":""}]
[null,"巡查人員姓名",null,null,null,null,null,null,null,"(請以英文正楷書寫)"]
[null,"#","(If more than one Inspection Officer involved in the same Tree Group Inspection, each Inspection Officer should submit individual Form 1 containing the trees inspected by him/her."]
[null,null,"如多於一位巡查人員負責同一樹群檢查，個別巡查人員應將其檢查的樹木以另一表格1填報。)"]
[]
[null,"Date of Form Completion:"]
[null,"完成表格日期",null,null,null,null,"(dd/mm/yyyy)"]
[]
[null,"(If Form 1 is submitted in paper form 若以文本形式遞交表格1)"]
[]
[]
[null,"Signature of Inspection Officer:"]
[null,"巡查人員簽署："]

{"sheet":"List","index":1,"n_rows":864,"n_cols":29,"rows_kept":864,"cut":false,"hidden":false,"merged":[[0,27,0,28],[0,13,0,16],[0,17,0,18],[0,19,0,20],[0,21,0,22],[0,23,0,24],[0,25,0,26],[0,11,0,12],[0,0,0,1],[0,2,0,3],[0,4,0,6],[0,7,0,8],[0,9,0,10]]}
["YesNo",null,"Department",null,"Full Dept Name",null,null,"Dept Code",null,"Inspection Frequency",null,"Tree Risk Management Zone",null,"Tree Species",null,null,null,"Tree Status",null,"Overall Tree Conditions",null,"Triage Colour",null,"Remedial Actions/Form 2",null,"Attachment Type",null,"HK Districts"]
["Yes",1,"AFCD",1,"Agriculture, Fisheries and Conservation Department ","漁農自然護理署",1,"AFC",1,"Less than 少於 3 months 個月",1,"Category I 第一類",1,"Unidentified未能鑑別","Unidentified","未能鑑別",-2,"OVT 古樹名木",1,"Normal 正常",1,"Black 黑",3,"Crown cleaning 清理樹冠",1,"TREE 樹木",1,"Central and Western 中西區",1]
["No",0,"AMS",2,"Auxillary Medical Service","醫療輔助隊",2,"AMS",2,"3 months 個月",2,"Category II 第二類",2,"Others其他","Others","其他",-1,"Stonewall Tree 石牆樹",2,"Fair 一般",2,"Red 紅",2,"Crown thinning 樹冠疏理",2,"PHOTO 照片",2,"Eastern 東區",2]
[null,null,"ArchSD",3,"Architectural Services Department","建築署",3,"ASD",3,"6 months 個月",3,"Category III 第三類",3,"Acacia auriculiformis耳果相思(耳葉相思)","Acacia auriculiformis","耳果相思(耳葉相思)",1,"Large Tree 大樹",7,"Poor 差",3,"Orange 橙",4,"Crown reduction 縮減樹冠",3,"MAP 地圖",3,"Southern 南區",11]
[null,null,"BD",4,"Building Department","屋宇署",4,"DLD",4,"12 months 個月",4,null,null,"Acacia confusa台灣相思","Acacia confusa","台灣相思",2,"Other Trees 其他樹木",5,"Very Poor 十分差",4,"Yellow 黃",1,"Crown raising 樹冠提升",4,"OTHER 其他",4,"Wan Chai 灣仔區",15]
[null,null,"C&SD ",5,"Census and Statistics Department","政府統計處",5,"CNS",5,"24 months 個月",5,null,null,"Acacia dealbata銀荊","Acacia dealbata","銀荊",3,null,null,"Dead Tree 死樹",5,"No 無",0,"Structural Pruning 結構修剪 ",5,null,null,"Kowloon City 九龍城區",4]
[null,null,"CAD",6,"Civil Aviation Department","民航處",6,"CAD",6,"36 months 個月",6,null,null,"Acacia holosericea絹毛相思","Acacia holosericea","絹毛相思",4,null,null,null,null,null,null,"Cabling, bracing or propping 纜索拉纜或支柱",6,null,null,"Kwai Tsing 葵青區",5]
[null,null,"CAS",7,"Civil Aid Service","民眾安全服務隊",7,"CAS",7,"48 months 個月",7,null,null,"Acacia mangium大葉相思(馬占相思)","Acacia mangium","大葉相思(馬占相思)",5,null,null,null,null,null,null,"Pest/ disease control 病蟲害控制",7,null,null,"Sham Shui Po 深水埗區",10]
[null,null,"CEDD",8,"Civil Engineering and Development Department","土木工程拓展署",8,"CED",8,"60 months 個月",8,null,null,"Acer buergerianum三角槭","Acer buergerianum","三角槭",6,null,null,null,null,null,null,"Removal 移除",8,null,null,"Wong Tai Sin 黃大仙區",16]
[null,null,"CPU",9,"Central Policy Unit","中央政策組",9,"CPU",9,"Over 超過 60 months 個月",9,null,null,"Acer palmatum雞爪槭","Acer palmatum","雞爪槭",7,null,null,null,null,null,null,"Form 2 Assessment 表格2評估",9,null,null,"Yau Tsim Mong 油尖旺區",17]
[null,null,"CSD",10,"Hong Kong Correctional Services","香港懲教署",10,"CSD",10,"Ad hoc",10,null,null,"Acer tutcheri嶺南槭","Acer tutcheri","嶺南槭",8,null,null,null,null,null,null,"Others 其他:",-1,null,null,"Islands 離島區",3]
[null,null,"CSO",11,"Chief Secretary for Administration's Office","政務司司長辦公室",11,"CSO",11,null,null,null,null,"Acmena acuminatissima肖蒲桃","Acmena acuminatissima","肖蒲桃",9,null,null,null,null,null,null,null,null,null,null,"Kwun Tong 觀塘區",6]
[null,null,"CUSTOMS",12,"Customs and Excise Department","香港海關",12,"CUS",12,null,null,null,null,"Acmena 'Doubloon'紅車(千頭肖蒲桃)","Acmena 'Doubloon'","紅車(千頭肖蒲桃)",10,null,null,null,null,null,null,null,null,null,null,"North 北區",7]
[null,null,"DEVB",13,"Development Bureau","發展局(文物)",13,"DEV",13,null,null,null,null,"Acronychia pedunculata山油柑(降真香)","Acronychia pedunculata","山油柑(降真香)",11,null,null,null,null,null,null,null,null,null,null,"Sai Kung 西貢區",8]
[null,null,"DH",14,"Department of Health","衛生署",14,"DOH",14,null,null,null,null,"Adenanthera microsperma海紅豆","Adenanthera microsperma","海紅豆",12,null,null,null,null,null,null,null,null,null,null,"Sha Tin 沙田區",9]
[null,null,"DoJ",15,"Department of Justice","律政司",15,"DOJ",15,null,null,null,null,"Adinandra millettii黃瑞木","Adinandra millettii","黃瑞木",13,null,null,null,null,null,null,null,null,null,null,"Tai Po 大埔區",12]
[null,null,"DSD",16,"Drainage Services Department","渠務署",16,"DSD",16,null,null,null,null,"Aegle marmelos木橘(肖木蘋果)","Aegle marmelos","木橘(肖木蘋果)",14,null,null,null,null,null,null,null,null,null,null,"Tsuen Wan 荃灣區",13]
[null,null,"EDB",17,"Education Bureau","教育局",17,"EDB",17,null,null,null,null,"Agathis dammara貝殼杉","Agathis dammara","貝殼杉",15,null,null,null,null,null,null,null,null,null,null,"Tuen Mun 屯門區",14]
[null,null,"EMSD",18,"Electrical and Mechanical Services Department","機電工程署",18,"EMS",18,null,null,null,null,"Aglaia odorata米仔蘭","Aglaia odorata","米仔蘭",16,null,null,null,null,null,null,null,null,null,null,"Yuen Long 元朗區",18]
[null,null,"EPD",19,"Environmental Protection Department","環境保護署",19,"EPD",19,null,null,null,null,"Ailanthus fordii福氏臭椿(常綠臭椿)","Ailanthus fordii","福氏臭椿(常綠臭椿)",17]
[null,null,"FEHD",20,"Food and Environmental Hygiene Department","食物環境衞生署",20,"FEH",20,null,null,null,null,"Alangium chinense八角楓","Alangium chinense","八角楓",18]
[null,null,"FSD",21,"Fire Services Department","消防處",21,"FSD",21,null,null,null,null,"Albizia chinensis楹樹","Albizia chinensis","楹樹",19]
[null,null,"GFS",22,"Government Flying Service","政府飛行服務隊",22,"GFS",22,null,null,null,null,"Albizia julibrissin合歡","Albizia julibrissin","合歡",20]
[null,null,"GL",23,"Government Laboratory","政府化驗所",23,"GOL",23,null,null,null,null,"Albizia lebbeck大葉合歡","Albizia lebbeck","大葉合歡",21]
[null,null,"GLD",24,"Government Logistics Department","政府物流服務署",24,"GLD",24,null,null,null,null,"Albizia lucidior光葉合歡","Albizia lucidior","光葉合歡",22]
[null,null,"GPA",25,"Government Property Agency","政府產業署",25,"GPA",25,null,null,null,null,"Albizia procera黃豆樹","Albizia procera","黃豆樹",23]
[null,null,"HYA",26,"Home and Youth Affairs Bureau","民政及青年事務局",26,"HYA",26,null,null,null,null,"Samanea saman (syn. Albizia saman)雨樹","Samanea saman (syn. Albizia saman)","雨樹",24]
[null,null,"HAD",27,"Home Affairs Department","民政事務總署",27,"HAD",27,null,null,null,null,"Aleurites moluccana石栗","Aleurites moluccana","石栗",25]
[null,null,"HD",28,"Housing Department","房屋署",28,"HSD",28,null,null,null,null,"Alnus japonica赤楊","Alnus japonica","赤楊",26]
[null,null,"HKO",29,"Hong Kong Observatory","香港天文台",29,"HKO",29,null,null,null,null,"Alsophila spinulosa刺桫欏","Alsophila spinulosa","刺桫欏",27]
[null,null,"HKPF",30,"Hong Kong Police Force","香港警務處",30,"HKP",30,null,null,null,null,"Alstonia scholaris糖膠樹(黑板樹)","Alstonia scholaris","糖膠樹(黑板樹)",28]
[null,null,"HKPO",31,"Hong Kong Post","香港郵政",31,"POS",31,null,null,null,null,"Altingia chinensis蕈樹(阿丁楓、山荔枝)","Altingia chinensis","蕈樹(阿丁楓、山荔枝)",29]
[null,null,"HyD",32,"Highways Department","路政署",32,"HYD",32,null,null,null,null,"Amentotaxus argotaenia穗花杉","Amentotaxus argotaenia","穗花杉",30]
[null,null,"ICAC",33,"Independent Commission Against Corruption","香港廉政公署",33,"ICA",33,null,null,null,null,"Annona glabra圓滑番荔枝 ","Annona glabra","圓滑番荔枝 ",31]
[null,null,"JUDICIARY",34,"Judiciary","香港司法機構",34,"JUD",34,null,null,null,null,"Annona squamosa番荔枝","Annona squamosa","番荔枝",32]
[null,null,"LandsD",35,"Lands Department","地政總署",35,"LAN",35,null,null,null,null,"Antidesma bunius五月茶(五味子)","Antidesma bunius","五月茶(五味子)",33]
[null,null,"LCSD",36,"Leisure and Cultural Services Department","康樂及文化事務署",36,"LCS",36,null,null,null,null,"Antidesma fordii黃毛五月茶","Antidesma fordii","黃毛五月茶",34]
[null,null,"MarDep",37,"Hong Kong Marine Department","香港海事處",37,"MAD",37,null,null,null,null,"Antidesma ghaesembilla方葉五月茶","Antidesma ghaesembilla","方葉五月茶",35]
[null,null,"RTHK",38,"Radio Television Hong Kong","香港電台",38,"RTH",38,null,null,null,null,"Antidesma japonicum日本五月茶","Antidesma japonicum","日本五月茶",36]
[null,null,"SB",39,"Security Bureau","保安局",39,"SEB",39,null,null,null,null,"Aphananthe cuspidata (syn. Gironniera nitida)滇糙葉樹(坡命工)","Aphananthe cuspidata (syn. Gironniera nitida)","滇糙葉樹(坡命工)",37]
[null,null,"SWD",40,"Social Welfare Department","社會福利署",40,"SWD",40,null,null,null,null,"Aporusa dioica銀柴(大沙葉)","Aporusa dioica","銀柴(大沙葉)",38]
[null,null,"TD",41,"Transport Department","運輸署",41,"TRD",41,null,null,null,null,"Aquilaria sinensis土沉香(牙香樹)","Aquilaria sinensis","土沉香(牙香樹)",39]
[null,null,"Treasury",42,"The Treasury","庫務署",42,"TRE",42,null,null,null,null,"Aralia finlaysoniana虎刺楤木","Aralia finlaysoniana","虎刺楤木",40]
[null,null,"WSD",43,"Water Supplies Department","水務署",43,"WSD",43,null,null,null,null,"Araucaria bidwillii大葉南洋杉","Araucaria bidwillii","大葉南洋杉",41]
[null,null,"HA",44,"Hospital Authority","醫院管理局",44,"HAU",44,null,null,null,null,"Araucaria cunninghamii南洋杉(花旗杉)","Araucaria cunninghamii","南洋杉(花旗杉)",42]
[null,null,"AA",45,"Airport Authority","機場管理局",45,"AAU",45,null,null,null,null,"Araucaria heterophylla異葉南洋杉","Araucaria heterophylla","異葉南洋杉",43]
[null,null,"The LINK",46,"The LINK","領展",46,"LIN",46,null,null,null,null,"Archidendron clypearia猴耳環","Archidendron clypearia","猴耳環",44]
[null,null,"MTRC",47,"Mass Transport Railway Corporation","港鐵公司",47,"MTR",47,null,null,null,null,"Archidendron lucidum亮葉猴耳環","Archidendron lucidum","亮葉猴耳環",45]
[null,null,"PriO",48,"Private Owner","私人業權",48,"PRO",48,null,null,null,null,"Archontophoenix alexandrae假檳榔","Archontophoenix alexandrae","假檳榔",46]
[null,null,null,null,null,null,null,null,null,null,null,null,null,"Areca catechu檳榔","Areca catechu","檳榔",47]
[null,null,null,null,null,null,null,null,null,null,null,null,null,"Arenga pinnata砂糖椰子(桄榔)","Arenga pinnata","砂糖椰子(桄榔)",48]
[null,null,null,null,null,null,null,null,null,null,null,null,null,"Artocarpus communis (syn. Artocarpus altilis) 麵包樹","Artocarpus communis (syn. Artocarpus altilis) ","麵包樹",49]
[null,null,null,null,null,null,null,null,null,null,null,null,null,"Artocarpus hypargyreus白桂木","Artocarpus hypargyreus","白桂木",50]
[null,null,null,null,null,null,null,null,null,null,null,null,null,"Artocarpus heterophyllus (syn. Artocarpus macrocarpon)菠蘿蜜","Artocarpus heterophyllus (syn. Artocarpus macrocarpon)","菠蘿蜜",51]
[null,null,null,null,null,null,null,null,null,null,null,null,null,"Artocarpus nitidus subsp. lingnanensis桂木(紅桂木)","Artocarpus nitidus subsp. lingnanensis","桂木(紅桂木)",52]
[null,null,null,null,null,null,null,null,null,null,null,null,null,"Astrocaryum jauari-","Astrocaryum jauari","-",53]
[null,null,null,null,null,null,null,null,null,null,null,null,null,"Averrhoa carambola楊桃","Averrhoa carambola","楊桃",54]
[null,null,null,null,null,null,null,null,null,null,null,null,null,"Bauhinia x blakeana洋紫荊","Bauhinia x blakeana","洋紫荊",55]
[null,null,null,null,null,null,null,null,null,null,null,null,null,"Bauhinia purpurea紅花羊蹄甲","Bauhinia purpurea","紅花羊蹄甲",56]
[null,null,null,null,null,null,null,null,null,null,null,null,null,"Bauhinia tomentosa黃花羊蹄甲","Bauhinia tomentosa","黃花羊蹄甲",57]
[null,null,null,null,null,null,null,null,null,null,null,null,null,"Bauhinia variegata宮粉羊蹄甲","Bauhinia variegata","宮粉羊蹄甲",58]
[null,null,null,null,null,null,null,null,null,null,null,null,null,"Bauhinia variegata var. candida白花羊蹄甲","Bauhinia variegata var. candida","白花羊蹄甲",59]
[null,null,null,null,null,null,null,null,null,null,null,null,null,"Bischofia javanica秋楓","Bischofia javanica","秋楓",60]
[null,null,null,null,null,null,null,null,null,null,null,null,null,"Bischofia polycarpa重陽木","Bischofia polycarpa","重陽木",61]
[null,null,null,null,null,null,null,null,null,null,null,null,null,"Bixa orellana紅木","Bixa orellana","紅木",62]
[null,null,null,null,null,null,null,null,null,null,null,null,null,"Bombax ceiba木棉","Bombax ceiba","木棉",63]
[null,null,null,null,null,null,null,null,null,null,null,null,null,"Brachychiton acerifolius槭葉蘋婆","Brachychiton acerifolius","槭葉蘋婆",64]
[null,null,null,null,null,null,null,null,null,null,null,null,null,"Brachychiton discolor澳洲蘋婆","Brachychiton discolor","澳洲蘋婆",65]
[null,null,null,null,null,null,null,null,null,null,null,null,null,"Brachychiton rupestris昆士蘭瓶子樹","Brachychiton rupestris","昆士蘭瓶子樹",66]
[null,null,null,null,null,null,null,null,null,null,null,null,null,"Bridelia tomentosa土蜜樹(逼迫仔)","Bridelia tomentosa","土蜜樹(逼迫仔)",67]
[null,null,null,null,null,null,null,null,null,null,null,null,null,"Broussonetia papyrifera構樹(殼木)","Broussonetia papyrifera","構樹(殼木)",68]
[null,null,null,null,null,null,null,null,null,null,null,null,null,"Brownea grandiceps繡球樹","Brownea grandiceps","繡球樹",69]
[null,null,null,null,null,null,null,null,null,null,null,null,null,"Caesalpinia sappan蘇木","Caesalpinia sappan","蘇木",70]
[null,null,null,null,null,null,null,null,null,null,null,null,null,"Callistemon rigidus紅千層","Callistemon rigidus","紅千層",71]
[null,null,null,null,null,null,null,null,null,null,null,null,null,"Callistemon viminalis串錢柳","Callistemon viminalis","串錢柳",72]
[null,null,null,null,null,null,null,null,null,null,null,null,null,"Callitris rhomoboidea菱形美麗柏","Callitris rhomoboidea","菱形美麗柏",73]
[null,null,null,null,null,null,null,null,null,null,null,null,null,"Callitris cupressiformis彎垂柏松","Callitris cupressiformis","彎垂柏松",74]
[null,null,null,null,null,null,null,null,null,null,null,null,null,"Callitris robusta柏松","Callitris robusta","柏松",75]
[null,null,null,null,null,null,null,null,null,null,null,null,null,"Calocedrus macrolepis翠柏","Calocedrus macrolepis","翠柏",76]
[null,null,null,null,null,null,null,null,null,null,null,null,null,"Camellia crapnelliana紅皮糙果茶(克氏茶)","Camellia crapnelliana","紅皮糙果茶(克氏茶)",77]
[null,null,null,null,null,null,null,null,null,null,null,null,null,"Camellia granthamiana大苞山茶(葛量洪茶)","Camellia granthamiana","大苞山茶(葛量洪茶)",78]
[null,null,null,null,null,null,null,null,null,null,null,null,null,"Camellia hongkongensis香港茶","Camellia hongkongensis","香港茶",79]
[null,null,null,null,null,null,null,null,null,null,null,null,null,"Camellia japonica山茶","Camellia japonica","山茶",80]
[null,null,null,null,null,null,null,null,null,null,null,null,null,"Camellia salicifolia柳葉茶","Camellia salicifolia","柳葉茶",81]
[null,null,null,null,null,null,null,null,null,null,null,null,null,"Cananga odorata依蘭(依蘭香)","Cananga odorata","依蘭(依蘭香)",82]
[null,null,null,null,null,null,null,null,null,null,null,null,null,"Canarium album橄欖(白欖)","Canarium album","橄欖(白欖)",83]
[null,null,null,null,null,null,null,null,null,null,null,null,null,"Canarium tramdenum烏欖","Canarium tramdenum","烏欖",84]
[null,null,null,null,null,null,null,null,null,null,null,null,null,"Canthium dicoccum魚骨木","Canthium dicoccum","魚骨木",85]
[null,null,null,null,null,null,null,null,null,null,null,null,null,"Carallia brachiata竹節樹","Carallia brachiata","竹節樹",86]
[null,null,null,null,null,null,null,null,null,null,null,null,null,"Carica papaya番木瓜","Carica papaya","番木瓜",87]
[null,null,null,null,null,null,null,null,null,null,null,null,null,"Caryota obtusa槿棕","Caryota obtusa","槿棕",88]
[null,null,null,null,null,null,null,null,null,null,null,null,null,"Caryota maxima (syn. Caryota ochlandra)魚尾葵","Caryota maxima (syn. Caryota ochlandra)","魚尾葵",89]
[null,null,null,null,null,null,null,null,null,null,null,null,null,"Caryota rumphiana-","Caryota rumphiana","-",90]
[null,null,null,null,null,null,null,null,null,null,null,null,null,"Caryota urens董棕(大魚尾葵)","Caryota urens","董棕(大魚尾葵)",91]
[null,null,null,null,null,null,null,null,null,null,null,null,null,"Cassia fistula臘腸樹(豬腸豆)","Cassia fistula","臘腸樹(豬腸豆)",92]
[null,null,null,null,null,null,null,null,null,null,null,null,null,"Cassia javanica爪哇決明","Cassia javanica","爪哇決明",93]
[null,null,null,null,null,null,null,null,null,null,null,null,null,"Cassia javanica var. indochinensis節果決明","Cassia javanica var. indochinensis","節果決明",94]
[null,null,null,null,null,null,null,null,null,null,null,null,null,"Cassia roxburghii紅花決明(紅桂木)","Cassia roxburghii","紅花決明(紅桂木)",95]
[null,null,null,null,null,null,null,null,null,null,null,null,null,"Cassia roxburghii 'Marginata'紅槐","Cassia roxburghii 'Marginata'","紅槐",96]
[null,null,null,null,null,null,null,null,null,null,null,null,null,"Cassia speciosa大葉黃槐","Cassia speciosa","大葉黃槐",97]
[null,null,null,null,null,null,null,null,null,null,null,null,null,"Cassia spectabilis美國槐(美麗決明)","Cassia spectabilis","美國槐(美麗決明)",98]
[null,null,null,null,null,null,null,null,null,null,null,null,null,"Castanopsis carlesii米櫧","Castanopsis carlesii","米櫧",99]
[null,null,null,null,null,null,null,null,null,null,null,null,null,"Castanopsis concinna華南錐","Castanopsis concinna","華南錐",100]
[null,null,null,null,null,null,null,null,null,null,null,null,null,"Castanopsis eyrei甜櫧","Castanopsis eyrei","甜櫧",101]
[null,null,null,null,null,null,null,null,null,null,null,null,null,"Castanopsis fabri羅浮錐","Castanopsis fabri","羅浮錐",102]
[null,null,null,null,null,null,null,null,null,null,null,null,null,"Castanopsis fargesii栲","Castanopsis fargesii","栲",103]
[null,null,null,null,null,null,null,null,null,null,null,null,null,"Castanopsis fissa黧蒴錐(裂斗錐栗)","Castanopsis fissa","黧蒴錐(裂斗錐栗)",104]
[null,null,null,null,null,null,null,null,null,null,null,null,null,"Castanopsis fordii毛錐","Castanopsis fordii","毛錐",105]
[null,null,null,null,null,null,null,null,null,null,null,null,null,"Castanopsis kawakamii吊皮錐","Castanopsis kawakamii","吊皮錐",106]
[null,null,null,null,null,null,null,null,null,null,null,null,null,"Castanopsis lamontii鹿角錐","Castanopsis lamontii","鹿角錐",107]
[null,null,null,null,null,null,null,null,null,null,null,null,null,"Castanopsis sclerophylla苦櫧","Castanopsis sclerophylla","苦櫧",108]
[null,null,null,null,null,null,null,null,null,null,null,null,null,"Castanospermum australe澳洲豆樹","Castanospermum australe","澳洲豆樹",109]
[null,null,null,null,null,null,null,null,null,null,null,null,null,"Casuarina cunninghamia細枝木麻黃","Casuarina cunninghamia","細枝木麻黃",110]
[null,null,null,null,null,null,null,null,null,null,null,null,null,"Casuarina equisetifolia木麻黃","Casuarina equisetifolia","木麻黃",111]
[null,null,null,null,null,null,null,null,null,null,null,null,null,"Casuarina stricta牛尾松","Casuarina stricta","牛尾松",112]
[null,null,null,null,null,null,null,null,null,null,null,null,null,"Catunaregam spinosa (syn. Randia spinosa)山石榴(山蒲桃)","Catunaregam spinosa (syn. Randia spinosa)","山石榴(山蒲桃)",113]
[null,null,null,null,null,null,null,null,null,null,null,null,null,"Cedrus deodara雪松","Cedrus deodara","雪松",114]
[null,null,null,null,null,null,null,null,null,null,null,null,null,"Ceiba pentandra吉貝(美洲木棉)","Ceiba pentandra","吉貝(美洲木棉)",115]
[null,null,null,null,null,null,null,null,null,null,null,null,null,"Celtis philippinensis大果油朴(大朴)","Celtis philippinensis","大果油朴(大朴)",116]
[null,null,null,null,null,null,null,null,null,null,null,null,null,"Celtis sinensis朴樹","Celtis sinensis","朴樹",117]
[null,null,null,null,null,null,null,null,null,null,null,null,null,"Celtis timorensis假玉桂(樟葉朴)","Celtis timorensis","假玉桂(樟葉朴)",118]
[null,null,null,null,null,null,null,null,null,null,null,null,null,"Cerbera manghas海芒果","Cerbera manghas","海芒果",119]
[null,null,null,null,null,null,null,null,null,null,null,null,null,"Cercis chinensis紫荊","Cercis chinensis","紫荊",120]
[null,null,null,null,null,null,null,null,null,null,null,null,null,"Chamaecyparis pisifera  'Squarrosa'絨柏(雲松)","Chamaecyparis pisifera  'Squarrosa'","絨柏(雲松)",121]
[null,null,null,null,null,null,null,null,null,null,null,null,null,"Choerospondias axillaris南酸棗(酸棗)","Choerospondias axillaris","南酸棗(酸棗)",122]
[null,null,null,null,null,null,null,null,null,null,null,null,null,"Chorisia insignis白花絲木棉","Chorisia insignis","白花絲木棉",123]
[null,null,null,null,null,null,null,null,null,null,null,null,null,"Chorisia speciosa絲木棉(美人樹)","Chorisia speciosa","絲木棉(美人樹)",124]
[null,null,null,null,null,null,null,null,null,null,null,null,null,"Chukrasia tabularis麻楝","Chukrasia tabularis","麻楝",125]
[null,null,null,null,null,null,null,null,null,null,null,null,null,"Cinnamomum aromaticum (syn. Cinnamomum cassia)肉桂","Cinnamomum aromaticum (syn. Cinnamomum cassia)","肉桂",126]
[null,null,null,null,null,null,null,null,null,null,null,null,null,"Cinnamomum burmannii陰香","Cinnamomum burmannii","陰香",127]
[null,null,null,null,null,null,null,null,null,null,null,null,null,"Cinnamomum camphora樟","Cinnamomum camphora","樟",128]
[null,null,null,null,null,null,null,null,null,null,null,null,null,"Cinnamomum parthenoxylon黃樟","Cinnamomum parthenoxylon","黃樟",129]
[null,null,null,null,null,null,null,null,null,null,null,null,null,"Citrus limonia黎檬","Citrus limonia","黎檬",130]
[null,null,null,null,null,null,null,null,null,null,null,null,null,"Citrus maxima柚","Citrus maxima","柚",131]
[null,null,null,null,null,null,null,null,null,null,null,null,null,"Citrus reticulata柑橘","Citrus reticulata","柑橘",132]
[null,null,null,null,null,null,null,null,null,null,null,null,null,"Citrus sinensis甜橙(橙)","Citrus sinensis","甜橙(橙)",133]
[null,null,null,null,null,null,null,null,null,null,null,null,null,"Citrus x paradisi葡萄柚(西柚)","Citrus x paradisi","葡萄柚(西柚)",134]
[null,null,null,null,null,null,null,null,null,null,null,null,null,"Claoxylon indicum白桐樹(丟了捧)","Claoxylon indicum","白桐樹(丟了捧)",135]
[null,null,null,null,null,null,null,null,null,null,null,null,null,"Clausena lansium黃皮","Clausena lansium","黃皮",136]
[null,null,null,null,null,null,null,null,null,null,null,null,null,"Cleidiocarpon cavaleriei蝴蝶果","Cleidiocarpon cavaleriei","蝴蝶果",137]
[null,null,null,null,null,null,null,null,null,null,null,null,null,"Cleistocalyx nervosum水翁","Cleistocalyx nervosum","水翁",138]
[null,null,null,null,null,null,null,null,null,null,null,null,null,"Cocos nucifera椰子","Cocos nucifera","椰子",139]
[null,null,null,null,null,null,null,null,null,null,null,null,null,"Cordia dichotoma破布木","Cordia dichotoma","破布木",140]
[null,null,null,null,null,null,null,null,null,null,null,null,null,"Cordia sebestena紅花破布木","Cordia sebestena","紅花破布木",141]
[null,null,null,null,null,null,null,null,null,null,null,null,null,"Crateva trifoliata鈍葉魚木","Crateva trifoliata","鈍葉魚木",142]
[null,null,null,null,null,null,null,null,null,null,null,null,null,"Crateva unilocularis樹頭菜(魚木)","Crateva unilocularis","樹頭菜(魚木)",143]
[null,null,null,null,null,null,null,null,null,null,null,null,null,"Cratoxylum cochinchinense黃牛木","Cratoxylum cochinchinense","黃牛木",144]
[null,null,null,null,null,null,null,null,null,null,null,null,null,"Crescentia alata十字架樹","Crescentia alata","十字架樹",145]
[null,null,null,null,null,null,null,null,null,null,null,null,null,"Cryptomeria japonica日本柳杉","Cryptomeria japonica","日本柳杉",146]
[null,null,null,null,null,null,null,null,null,null,null,null,null,"Cunninghamia lanceolata杉木","Cunninghamia lanceolata","杉木",147]
[null,null,null,null,null,null,null,null,null,null,null,null,null,"Cupressus funebris柏木(垂柏)","Cupressus funebris","柏木(垂柏)",148]
[null,null,null,null,null,null,null,null,null,null,null,null,null,"Cyclobalanopsis blakei櫟子青岡","Cyclobalanopsis blakei","櫟子青岡",149]
[null,null,null,null,null,null,null,null,null,null,null,null,null,"Cyclobalanopsis championii嶺南青岡","Cyclobalanopsis championii","嶺南青岡",150]
[null,null,null,null,null,null,null,null,null,null,null,null,null,"Cyclobalanopsis chungii福建青岡","Cyclobalanopsis chungii","福建青岡",151]
[null,null,null,null,null,null,null,null,null,null,null,null,null,"Cyclobalanopsis edithiae華南青岡","Cyclobalanopsis edithiae","華南青岡",152]
[null,null,null,null,null,null,null,null,null,null,null,null,null,"Cyclobalanopsis glauca青岡","Cyclobalanopsis glauca","青岡",153]
[null,null,null,null,null,null,null,null,null,null,null,null,null,"Cyclobalanopsis hui雷公青岡","Cyclobalanopsis hui","雷公青岡",154]
[null,null,null,null,null,null,null,null,null,null,null,null,null,"Cyclobalanopsis litseoides木薑葉青岡","Cyclobalanopsis litseoides","木薑葉青岡",155]
[null,null,null,null,null,null,null,null,null,null,null,null,null,"Cyclobalanopsis myrsinifolia (syn. Quercus  myrsinifolia)小葉青岡","Cyclobalanopsis myrsinifolia (syn. Quercus  myrsinifolia)","小葉青岡",156]
[null,null,null,null,null,null,null,null,null,null,null,null,null,"Cyclobalanopsis neglecta (syn. Quercus bambusifolia)竹葉青岡","Cyclobalanopsis neglecta (syn. Quercus bambusifolia)","竹葉青岡",157]
[null,null,null,null,null,null,null,null,null,null,null,null,null,"Dacrycarpus imbricatus雞毛松","Dacrycarpus imbricatus","雞毛松",158]
[null,null,null,null,null,null,null,null,null,null,null,null,null,"Dalbergia odorifera降香黃檀","Dalbergia odorifera","降香黃檀",159]
[null,null,null,null,null,null,null,null,null,null,null,null,null,"Dalbergia sissoo印度黃檀","Dalbergia sissoo","印度黃檀",160]
[null,null,null,null,null,null,null,null,null,null,null,null,null,"Dalbergia assamica (syn. Dalbergia balansae) 南嶺黃檀","Dalbergia assamica (syn. Dalbergia balansae) ","南嶺黃檀",161]
[null,null,null,null,null,null,null,null,null,null,null,null,null,"Daphniphyllum calycinum牛耳楓","Daphniphyllum calycinum","牛耳楓",162]
[null,null,null,null,null,null,null,null,null,null,null,null,null,"Daphniphyllum oldhamii虎皮楠","Daphniphyllum oldhamii","虎皮楠",163]
[null,null,null,null,null,null,null,null,null,null,null,null,null,"Decaspermum gracilentum子楝樹(桑枝米碎葉)","Decaspermum gracilentum","子楝樹(桑枝米碎葉)",164]
[null,null,null,null,null,null,null,null,null,null,null,null,null,"Delonix regia鳳凰木","Delonix regia","鳳凰木",165]
[null,null,null,null,null,null,null,null,null,null,null,null,null,"Dicksonia antarctica塔斯馬尼亞蚌殼蕨","Dicksonia antarctica","塔斯馬尼亞蚌殼蕨",166]
[null,null,null,null,null,null,null,null,null,null,null,null,null,"Dillenia alata (syn. Wormia alata)厚葉黃花樹","Dillenia alata (syn. Wormia alata)","厚葉黃花樹",167]
[null,null,null,null,null,null,null,null,null,null,null,null,null,"Dillenia indica五椏果(第倫桃)","Dillenia indica","五椏果(第倫桃)",168]
[null,null,null,null,null,null,null,null,null,null,null,null,null,"Dimocarpus longan龍眼","Dimocarpus longan","龍眼",169]
[null,null,null,null,null,null,null,null,null,null,null,null,null,"Diospyros eriantha烏柿","Diospyros eriantha","烏柿",170]
[null,null,null,null,null,null,null,null,null,null,null,null,null,"Diospyros kaki柿","Diospyros kaki","柿",171]
[null,null,null,null,null,null,null,null,null,null,null,null,null,"Diospyros morrisiana羅浮柿","Diospyros morrisiana","羅浮柿",172]
[null,null,null,null,null,null,null,null,null,null,null,null,null,"Diospyros tutcheri嶺南柿","Diospyros tutcheri","嶺南柿",173]
[null,null,null,null,null,null,null,null,null,null,null,null,null,"Dizygotheca elegantissima孔雀木","Dizygotheca elegantissima","孔雀木",174]
[null,null,null,null,null,null,null,null,null,null,null,null,null,"Markhamia stipulata var. kerrii (syn. Dolichandrone cauda-felina)貓尾木","Markhamia stipulata var. kerrii (syn. Dolichandrone cauda-felina)","貓尾木",175]
[null,null,null,null,null,null,null,null,null,null,null,null,null,"Dombeya wallichii吊芙蓉","Dombeya wallichii","吊芙蓉",176]
[null,null,null,null,null,null,null,null,null,null,null,null,null,"Dracontomelon duperreanum人面子","Dracontomelon duperreanum","人面子",177]
[null,null,null,null,null,null,null,null,null,null,null,null,null,"Drypetes roxburghii藥用核果木","Drypetes roxburghii","藥用核果木",178]
[null,null,null,null,null,null,null,null,null,null,null,null,null,"Dysoxylum hongkongense香港樫木","Dysoxylum hongkongense","香港樫木",179]
[null,null,null,null,null,null,null,null,null,null,null,null,null,"Ehretia acuminata厚殼樹","Ehretia acuminata","厚殼樹",180]
[null,null,null,null,null,null,null,null,null,null,null,null,null,"Ehretia longiflora長花厚殼樹","Ehretia longiflora","長花厚殼樹",181]
[null,null,null,null,null,null,null,null,null,null,null,null,null,"Elaeis guineensis油棕","Elaeis guineensis","油棕",182]
[null,null,null,null,null,null,null,null,null,null,null,null,null,"Elaeocarpus apiculatus長芒杜英(尖葉杜英)","Elaeocarpus apiculatus","長芒杜英(尖葉杜英)",183]
[null,null,null,null,null,null,null,null,null,null,null,null,null,"Elaeocarpus balansae大葉杜英","Elaeocarpus balansae","大葉杜英",184]
[null,null,null,null,null,null,null,null,null,null,null,null,null,"Elaeocarpus chinensis中華杜英","Elaeocarpus chinensis","中華杜英",185]
[null,null,null,null,null,null,null,null,null,null,null,null,null,"Elaeocarpus decipiens杜英","Elaeocarpus decipiens","杜英",186]
[null,null,null,null,null,null,null,null,null,null,null,null,null,"Elaeocarpus dubius顯脈杜英","Elaeocarpus dubius","顯脈杜英",187]
[null,null,null,null,null,null,null,null,null,null,null,null,null,"Elaeocarpus hainanensis水石榕","Elaeocarpus hainanensis","水石榕",188]
[null,null,null,null,null,null,null,null,null,null,null,null,null,"Elaeocarpus japonicus日本杜英","Elaeocarpus japonicus","日本杜英",189]
[null,null,null,null,null,null,null,null,null,null,null,null,null,"Elaeocarpus nitentifolius絹毛杜英","Elaeocarpus nitentifolius","絹毛杜英",190]
[null,null,null,null,null,null,null,null,null,null,null,null,null,"Elaeocarpus sylvestris山杜英(膽八樹)","Elaeocarpus sylvestris","山杜英(膽八樹)",191]
[null,null,null,null,null,null,null,null,null,null,null,null,null,"Elaeodendron orientale福木","Elaeodendron orientale","福木",192]
[null,null,null,null,null,null,null,null,null,null,null,null,null,"Endospermum chinense黃桐","Endospermum chinense","黃桐",193]
[null,null,null,null,null,null,null,null,null,null,null,null,null,"Eriobotrya fragrans山枇杷(香花枇杷)","Eriobotrya fragrans","山枇杷(香花枇杷)",194]
[null,null,null,null,null,null,null,null,null,null,null,null,null,"Eriobotrya japonica枇杷","Eriobotrya japonica","枇杷",195]
[null,null,null,null,null,null,null,null,null,null,null,null,null,"Erythrina caffra南非刺桐","Erythrina caffra","南非刺桐",196]
[null,null,null,null,null,null,null,null,null,null,null,null,null,"Erythrina corallodendron龍牙花","Erythrina corallodendron","龍牙花",197]
[null,null,null,null,null,null,null,null,null,null,null,null,null,"Erythrina crista-galli雞冠刺桐","Erythrina crista-galli","雞冠刺桐",198]
[null,null,null,null,null,null,null,null,null,null,null,null,null,"Erythrina indica 'Picta'花葉刺桐","Erythrina indica 'Picta'","花葉刺桐",199]
[null,null,null,null,null,null,null,null,null,null,null,null,null,"Erythrina speciosa象牙花","Erythrina speciosa","象牙花",200]
[null,null,null,null,null,null,null,null,null,null,null,null,null,"Erythrina variegata刺桐","Erythrina variegata","刺桐",201]
[null,null,null,null,null,null,null,null,null,null,null,null,null,"Eucalyptus calophylla紅花桉","Eucalyptus calophylla","紅花桉",202]
[null,null,null,null,null,null,null,null,null,null,null,null,null,"Eucalyptus camaldulensis赤桉","Eucalyptus camaldulensis","赤桉",203]
[null,null,null,null,null,null,null,null,null,null,null,null,null,"Eucalyptus cinerea銀葉桉","Eucalyptus cinerea","銀葉桉",204]
[null,null,null,null,null,null,null,null,null,null,null,null,null,"Eucalyptus citriodora檸檬桉","Eucalyptus citriodora","檸檬桉",205]
[null,null,null,null,null,null,null,null,null,null,null,null,null,"Eucalyptus exserta窿緣桉","Eucalyptus exserta","窿緣桉",206]
[null,null,null,null,null,null,null,null,null,null,null,null,null,"Eucalyptus maculata花皮桉","Eucalyptus maculata","花皮桉",207]
[null,null,null,null,null,null,null,null,null,null,null,null,null,"Eucalyptus robusta大葉桉","Eucalyptus robusta","大葉桉",208]
[null,null,null,null,null,null,null,null,null,null,null,null,null,"Eucalyptus saligna柳葉桉","Eucalyptus saligna","柳葉桉",209]
[null,null,null,null,null,null,null,null,null,null,null,null,null,"Eucalyptus tereticornis細葉桉","Eucalyptus tereticornis","細葉桉",210]
[null,null,null,null,null,null,null,null,null,null,null,null,null,"Eucalyptus torelliana毛葉桉","Eucalyptus torelliana","毛葉桉",211]
[null,null,null,null,null,null,null,null,null,null,null,null,null,"Eugenia oleina紅心樹","Eugenia oleina","紅心樹",212]
[null,null,null,null,null,null,null,null,null,null,null,null,null,"Euphorbia continifolia非洲紅","Euphorbia continifolia","非洲紅",213]
[null,null,null,null,null,null,null,null,null,null,null,null,null,"Excoecaria agallocha海漆","Excoecaria agallocha","海漆",214]
[null,null,null,null,null,null,null,null,null,null,null,null,null,"Falcataria moluccana (syn. Albizia falcataria)南洋楹","Falcataria moluccana (syn. Albizia falcataria)","南洋楹",215]
[null,null,null,null,null,null,null,null,null,null,null,null,null,"Ficus altissima高山榕(雞榕)","Ficus altissima","高山榕(雞榕)",216]
[null,null,null,null,null,null,null,null,null,null,null,null,null,"Ficus annulata環紋榕","Ficus annulata","環紋榕",217]
[null,null,null,null,null,null,null,null,null,null,null,null,null,"Ficus benghalensis印度榕","Ficus benghalensis","印度榕",218]
[null,null,null,null,null,null,null,null,null,null,null,null,null,"Ficus benjamina垂葉榕","Ficus benjamina","垂葉榕",219]
[null,null,null,null,null,null,null,null,null,null,null,null,null,"Ficus carica無花果","Ficus carica","無花果",220]
[null,null,null,null,null,null,null,null,null,null,null,null,null,"Ficus concinna雅榕","Ficus concinna","雅榕",221]
[null,null,null,null,null,null,null,null,null,null,null,null,null,"Ficus elastica印度榕(印度橡樹)","Ficus elastica","印度榕(印度橡樹)",222]
[null,null,null,null,null,null,null,null,null,null,null,null,null,"Ficus erecta (syn. Ficus erecta var. beecheyana)天仙果","Ficus erecta (syn. Ficus erecta var. beecheyana)","天仙果",223]
[null,null,null,null,null,null,null,null,null,null,null,null,null,"Ficus fistulosa水同木","Ficus fistulosa","水同木",224]
[null,null,null,null,null,null,null,null,null,null,null,null,null,"Ficus hispida對葉榕(牛乳樹)","Ficus hispida","對葉榕(牛乳樹)",225]
[null,null,null,null,null,null,null,null,null,null,null,null,null,"Ficus langkokensis青藤公","Ficus langkokensis","青藤公",226]
[null,null,null,null,null,null,null,null,null,null,null,null,null,"Ficus longifolia長葉榕","Ficus longifolia","長葉榕",227]
[null,null,null,null,null,null,null,null,null,null,null,null,null,"Ficus lyrata大琴葉榕","Ficus lyrata","大琴葉榕",228]
[null,null,null,null,null,null,null,null,null,null,null,null,null,"Ficus microcarpa榕樹(細葉榕)","Ficus microcarpa","榕樹(細葉榕)",229]
[null,null,null,null,null,null,null,null,null,null,null,null,null,"Ficus nervosa凸葉榕(九丁樹)","Ficus nervosa","凸葉榕(九丁樹)",230]
[null,null,null,null,null,null,null,null,null,null,null,null,null,"Ficus religiosa菩提樹","Ficus religiosa","菩提樹",231]
[null,null,null,null,null,null,null,null,null,null,null,null,null,"Ficus rumphii心葉榕(假菩提樹)","Ficus rumphii","心葉榕(假菩提樹)",232]
[null,null,null,null,null,null,null,null,null,null,null,null,null,"Ficus subpisocarpa筆管榕","Ficus subpisocarpa","筆管榕",233]
[null,null,null,null,null,null,null,null,null,null,null,null,null,"Ficus tinctoria subsp. gibbosa斜葉榕(水榕)","Ficus tinctoria subsp. gibbosa","斜葉榕(水榕)",234]
[null,null,null,null,null,null,null,null,null,null,null,null,null,"Ficus triangularis三角榕","Ficus triangularis","三角榕",235]
[null,null,null,null,null,null,null,null,null,null,null,null,null,"Ficus variegata (syn. Ficus variegata var. chlorocarpa)青果榕","Ficus variegata (syn. Ficus variegata var. chlorocarpa)","青果榕",236]
[null,null,null,null,null,null,null,null,null,null,null,null,null,"Ficus variolosa變葉榕","Ficus variolosa","變葉榕",237]
[null,null,null,null,null,null,null,null,null,null,null,null,null,"Ficus vasculosa白肉榕","Ficus vasculosa","白肉榕",238]
[null,null,null,null,null,null,null,null,null,null,null,null,null,"Ficus virens (syn. Ficus virens var. sublanceolata)大葉榕(黃葛樹)","Ficus virens (syn. Ficus virens var. sublanceolata)","大葉榕(黃葛樹)",239]
[null,null,null,null,null,null,null,null,null,null,null,null,null,"Firmiana simplex梧桐","Firmiana simplex","梧桐",240]
[null,null,null,null,null,null,null,null,null,null,null,null,null,"Fokienia hodginsii福建柏","Fokienia hodginsii","福建柏",241]
[null,null,null,null,null,null,null,null,null,null,null,null,null,"Fraxinus americana美國灰木","Fraxinus americana","美國灰木",242]
[null,null,null,null,null,null,null,null,null,null,null,null,null,"Fraxinus chinensis白蠟樹","Fraxinus chinensis","白蠟樹",243]
[null,null,null,null,null,null,null,null,null,null,null,null,null,"Fraxinus griffithii (syn. Fraxinus formosana)光蠟樹","Fraxinus griffithii (syn. Fraxinus formosana)","光蠟樹",244]
[null,null,null,null,null,null,null,null,null,null,null,null,null,"Fraxinus insularis (syn. Fraxinus retusa)苦櫪木","Fraxinus insularis (syn. Fraxinus retusa)","苦櫪木",245]
[null,null,null,null,null,null,null,null,null,null,null,null,null,"Garcinia multiflora多花山竹子","Garcinia multiflora","多花山竹子",246]
[null,null,null,null,null,null,null,null,null,null,null,null,null,"Garcinia oblongifolia嶺南山竹子(黃牙果)","Garcinia oblongifolia","嶺南山竹子(黃牙果)",247]
[null,null,null,null,null,null,null,null,null,null,null,null,null,"Garcinia spicata福木","Garcinia spicata","福木",248]
[null,null,null,null,null,null,null,null,null,null,null,null,null,"Garcinia subelliptica菲島福木","Garcinia subelliptica","菲島福木",249]
[null,null,null,null,null,null,null,null,null,null,null,null,null,"Ginkgo biloba銀杏(白果樹)","Ginkgo biloba","銀杏(白果樹)",250]
[null,null,null,null,null,null,null,null,null,null,null,null,null,"Gironniera subaequalis白顏樹","Gironniera subaequalis","白顏樹",251]
[null,null,null,null,null,null,null,null,null,null,null,null,null,"Gleditsia australis小果皂莢","Gleditsia australis","小果皂莢",252]
[null,null,null,null,null,null,null,null,null,null,null,null,null,"Gleditsia fera華南皂莢","Gleditsia fera","華南皂莢",253]
[null,null,null,null,null,null,null,null,null,null,null,null,null,"Glochidion lanceolarium艾膠算盤子","Glochidion lanceolarium","艾膠算盤子",254]
[null,null,null,null,null,null,null,null,null,null,null,null,null,"Glochidion wrightii白背算盤子","Glochidion wrightii","白背算盤子",255]
[null,null,null,null,null,null,null,null,null,null,null,null,null,"Glyptostrobus pensilis水松","Glyptostrobus pensilis","水松",256]
[null,null,null,null,null,null,null,null,null,null,null,null,null,"Gmelina arborea雲南石梓(印度石梓)","Gmelina arborea","雲南石梓(印度石梓)",257]
[null,null,null,null,null,null,null,null,null,null,null,null,null,"Gmelina chinensis石梓(華石梓)","Gmelina chinensis","石梓(華石梓)",258]
[null,null,null,null,null,null,null,null,null,null,null,null,null,"Gordonia axillaris大頭茶","Gordonia axillaris","大頭茶",259]
[null,null,null,null,null,null,null,null,null,null,null,null,null,"Grevillea banksii昆士蘭銀樺(紅花銀樺)","Grevillea banksii","昆士蘭銀樺(紅花銀樺)",260]
[null,null,null,null,null,null,null,null,null,null,null,null,null,"Grevillea robusta銀樺","Grevillea robusta","銀樺",261]
[null,null,null,null,null,null,null,null,null,null,null,null,null,"Grewia asiatica山桑","Grewia asiatica","山桑",262]
[null,null,null,null,null,null,null,null,null,null,null,null,null,"Grewia eriocarpa毛果扁擔捍","Grewia eriocarpa","毛果扁擔捍",263]
[null,null,null,null,null,null,null,null,null,null,null,null,null,"Hevea brasiliensis巴西橡膠樹","Hevea brasiliensis","巴西橡膠樹",264]
[null,null,null,null,null,null,null,null,null,null,null,null,null,"Heritiera angustata長柄銀葉樹","Heritiera angustata","長柄銀葉樹",265]
[null,null,null,null,null,null,null,null,null,null,null,null,null,"Heritiera littoralis銀葉樹","Heritiera littoralis","銀葉樹",266]
[null,null,null,null,null,null,null,null,null,null,null,null,null,"Heteropanax fragrans幌傘楓 (火通木)","Heteropanax fragrans","幌傘楓 (火通木)",267]
[null,null,null,null,null,null,null,null,null,null,null,null,null,"Hibiscus tiliaceus黃槿","Hibiscus tiliaceus","黃槿",268]
[null,null,null,null,null,null,null,null,null,null,null,null,null,"Homalium cochinchinense天料木","Homalium cochinchinense","天料木",269]
[null,null,null,null,null,null,null,null,null,null,null,null,null,"Homalium hainanensis紅花天料木","Homalium hainanensis","紅花天料木",270]
[null,null,null,null,null,null,null,null,null,null,null,null,null,"Howea belmoreana拱葉棕","Howea belmoreana","拱葉棕",271]
[null,null,null,null,null,null,null,null,null,null,null,null,null,"Howea forsteriana根地亞葵","Howea forsteriana","根地亞葵",272]
[null,null,null,null,null,null,null,null,null,null,null,null,null,"Hydnocarpus anthelminthica泰國大風子","Hydnocarpus anthelminthica","泰國大風子",273]
[null,null,null,null,null,null,null,null,null,null,null,null,null,"Hyophorbe lagenicaulis酒瓶椰子","Hyophorbe lagenicaulis","酒瓶椰子",274]
[null,null,null,null,null,null,null,null,null,null,null,null,null,"Hyophorbe verschaffeltii棍棒椰子","Hyophorbe verschaffeltii","棍棒椰子",275]
[null,null,null,null,null,null,null,null,null,null,null,null,null,"Ilex chapaensis沙壩冬青","Ilex chapaensis","沙壩冬青",276]
[null,null,null,null,null,null,null,null,null,null,null,null,null,"Ilex cinerea灰冬青","Ilex cinerea","灰冬青",277]
[null,null,null,null,null,null,null,null,null,null,null,null,null,"Ilex cornuta枸骨","Ilex cornuta","枸骨",278]
[null,null,null,null,null,null,null,null,null,null,null,null,null,"Ilex ficoidea榕葉冬青","Ilex ficoidea","榕葉冬青",279]
[null,null,null,null,null,null,null,null,null,null,null,null,null,"Ilex graciliflora細花冬青","Ilex graciliflora","細花冬青",280]
[null,null,null,null,null,null,null,null,null,null,null,null,null,"Ilex latifolia大葉冬青","Ilex latifolia","大葉冬青",281]
[null,null,null,null,null,null,null,null,null,null,null,null,null,"Ilex macrocarpa大果冬青","Ilex macrocarpa","大果冬青",282]
[null,null,null,null,null,null,null,null,null,null,null,null,null,"Ilex memecylifolia谷木葉冬青","Ilex memecylifolia","谷木葉冬青",283]
[null,null,null,null,null,null,null,null,null,null,null,null,null,"Ilex rotunda鐵冬青","Ilex rotunda","鐵冬青",284]
[null,null,null,null,null,null,null,null,null,null,null,null,null,"Ilex rotunda var. microcarpa小果鐵冬青","Ilex rotunda var. microcarpa","小果鐵冬青",285]
[null,null,null,null,null,null,null,null,null,null,null,null,null,"Ilex viridis綠冬青(亮葉冬青)","Ilex viridis","綠冬青(亮葉冬青)",286]
[null,null,null,null,null,null,null,null,null,null,null,null,null,"Itea chinensis鼠刺(老鼠刺)","Itea chinensis","鼠刺(老鼠刺)",287]
[null,null,null,null,null,null,null,null,null,null,null,null,null,"Jacaranda mimosifolia藍花楹","Jacaranda mimosifolia","藍花楹",288]
[null,null,null,null,null,null,null,null,null,null,null,null,null,"Juniperus chinensis圓柏","Juniperus chinensis","圓柏",289]
[null,null,null,null,null,null,null,null,null,null,null,null,null,"Juniperus chinensis 'Aurea'金葉檜","Juniperus chinensis 'Aurea'","金葉檜",290]
[null,null,null,null,null,null,null,null,null,null,null,null,null,"Juniperus chinensis 'Kaizuca'龍柏","Juniperus chinensis 'Kaizuca'","龍柏",291]
[null,null,null,null,null,null,null,null,null,null,null,null,null,"Juniperus chinensis 'Globosa'球柏","Juniperus chinensis 'Globosa'","球柏",292]
[null,null,null,null,null,null,null,null,null,null,null,null,null,"Juniperus chinensis 'Sargentii'清水山檜","Juniperus chinensis 'Sargentii'","清水山檜",293]
[null,null,null,null,null,null,null,null,null,null,null,null,null,"Juniperus excelsa 'Stricta'洋白柏","Juniperus excelsa 'Stricta'","洋白柏",294]
[null,null,null,null,null,null,null,null,null,null,null,null,null,"Juniperus formosana刺柏","Juniperus formosana","刺柏",295]
[null,null,null,null,null,null,null,null,null,null,null,null,null,"Keteleeria fortunei油杉","Keteleeria fortunei","油杉",296]
[null,null,null,null,null,null,null,null,null,null,null,null,null,"Khaya senegalensis非洲楝","Khaya senegalensis","非洲楝",297]
[null,null,null,null,null,null,null,null,null,null,null,null,null,"Kigelia pinnata吊瓜樹","Kigelia pinnata","吊瓜樹",298]
[null,null,null,null,null,null,null,null,null,null,null,null,null,"Koelreuteria bipinnata複羽葉欒樹","Koelreuteria bipinnata","複羽葉欒樹",299]
[null,null,null,null,null,null,null,null,null,null,null,null,null,"Koelreuteria formosana台灣欒樹","Koelreuteria formosana","台灣欒樹",300]
[null,null,null,null,null,null,null,null,null,null,null,null,null,"Lagerstroemia fordii廣東紫薇","Lagerstroemia fordii","廣東紫薇",301]
[null,null,null,null,null,null,null,null,null,null,null,null,null,"Lagerstroemia indica紫薇","Lagerstroemia indica","紫薇",302]
[null,null,null,null,null,null,null,null,null,null,null,null,null,"Lagerstroemia speciosa大花紫薇(洋紫薇)","Lagerstroemia speciosa","大花紫薇(洋紫薇)",303]
[null,null,null,null,null,null,null,null,null,null,null,null,null,"Leptospermum petersonii檸檬茶薇","Leptospermum petersonii","檸檬茶薇",304]
[null,null,null,null,null,null,null,null,null,null,null,null,null,"Leucaena leucocephala銀合歡","Leucaena leucocephala","銀合歡",305]
[null,null,null,null,null,null,null,null,null,null,null,null,null,"Ligustrum liukiuense (syn. Ligustrum amamianum)台灣女貞","Ligustrum liukiuense (syn. Ligustrum amamianum)","台灣女貞",306]
[null,null,null,null,null,null,null,null,null,null,null,null,null,"Ligustrum lucidum女貞","Ligustrum lucidum","女貞",307]
[null,null,null,null,null,null,null,null,null,null,null,null,null,"Ligustrum sinense山指甲","Ligustrum sinense","山指甲",308]
[null,null,null,null,null,null,null,null,null,null,null,null,null,"Liquidambar formosana楓香","Liquidambar formosana","楓香",309]
[null,null,null,null,null,null,null,null,null,null,null,null,null,"Litchi chinensis荔枝","Litchi chinensis","荔枝",310]
[null,null,null,null,null,null,null,null,null,null,null,null,null,"Lithocarpus attenuatus尖葉柯","Lithocarpus attenuatus","尖葉柯",311]
[null,null,null,null,null,null,null,null,null,null,null,null,null,"Lithocarpus corneus煙斗柯","Lithocarpus corneus","煙斗柯",312]
[null,null,null,null,null,null,null,null,null,null,null,null,null,"Lithocarpus elizabethae厚斗柯","Lithocarpus elizabethae","厚斗柯",313]
[null,null,null,null,null,null,null,null,null,null,null,null,null,"Lithocarpus fenestratus var. brachycarpus泥柯","Lithocarpus fenestratus var. brachycarpus","泥柯",314]
[null,null,null,null,null,null,null,null,null,null,null,null,null,"Lithocarpus glaber柯","Lithocarpus glaber","柯",315]
[null,null,null,null,null,null,null,null,null,null,null,null,null,"Lithocarpus haipinii耳柯","Lithocarpus haipinii","耳柯",316]
[null,null,null,null,null,null,null,null,null,null,null,null,null,"Lithocarpus hancei硬殼柯","Lithocarpus hancei","硬殼柯",317]
[null,null,null,null,null,null,null,null,null,null,null,null,null,"Lithocarpus harlandii港柯(夏蘭柯)","Lithocarpus harlandii","港柯(夏蘭柯)",318]
[null,null,null,null,null,null,null,null,null,null,null,null,null,"Lithocarpus irwinii廣南柯 ","Lithocarpus irwinii","廣南柯 ",319]
[null,null,null,null,null,null,null,null,null,null,null,null,null,"Lithocarpus iteaphyllus鼠刺葉柯","Lithocarpus iteaphyllus","鼠刺葉柯",320]
[null,null,null,null,null,null,null,null,null,null,null,null,null,"Lithocarpus litseifolius木姜葉柯 ","Lithocarpus litseifolius","木姜葉柯 ",321]
[null,null,null,null,null,null,null,null,null,null,null,null,null,"Lithocarpus macilentus粉葉柯","Lithocarpus macilentus","粉葉柯",322]
[null,null,null,null,null,null,null,null,null,null,null,null,null,"Lithocarpus quercifolius櫟葉柯","Lithocarpus quercifolius","櫟葉柯",323]
[null,null,null,null,null,null,null,null,null,null,null,null,null,"Litsea cubeba木薑子(山蒼樹)","Litsea cubeba","木薑子(山蒼樹)",324]
[null,null,null,null,null,null,null,null,null,null,null,null,null,"Litsea glutinosa潺槁樹","Litsea glutinosa","潺槁樹",325]
[null,null,null,null,null,null,null,null,null,null,null,null,null,"Litsea monopetala假柿木薑子(假柿樹)","Litsea monopetala","假柿木薑子(假柿樹)",326]
[null,null,null,null,null,null,null,null,null,null,null,null,null,"Livistona australis澳洲蒲葵","Livistona australis","澳洲蒲葵",327]
[null,null,null,null,null,null,null,null,null,null,null,null,null,"Livistona chinensis蒲葵","Livistona chinensis","蒲葵",328]
[null,null,null,null,null,null,null,null,null,null,null,null,null,"Livistona decipiens迷惑蒲葵","Livistona decipiens","迷惑蒲葵",329]
[null,null,null,null,null,null,null,null,null,null,null,null,null,"Lophostemon confertus紅膠木","Lophostemon confertus","紅膠木",330]
[null,null,null,null,null,null,null,null,null,null,null,null,null,"Lysidice rhodostegia儀花","Lysidice rhodostegia","儀花",331]
[null,null,null,null,null,null,null,null,null,null,null,null,null,"Macadamia ternifolia澳洲堅果","Macadamia ternifolia","澳洲堅果",332]
[null,null,null,null,null,null,null,null,null,null,null,null,null,"Macaranga tanarius var. tomentosa血桐","Macaranga tanarius var. tomentosa","血桐",333]
[null,null,null,null,null,null,null,null,null,null,null,null,null,"Machilus breviflora短序潤楠","Machilus breviflora","短序潤楠",334]
[null,null,null,null,null,null,null,null,null,null,null,null,null,"Machilus chekiangensis浙江潤楠","Machilus chekiangensis","浙江潤楠",335]
[null,null,null,null,null,null,null,null,null,null,null,null,null,"Machilus chinensis華潤楠(香港楠)","Machilus chinensis","華潤楠(香港楠)",336]
[null,null,null,null,null,null,null,null,null,null,null,null,null,"Machilus gamblei黃心樹","Machilus gamblei","黃心樹",337]
[null,null,null,null,null,null,null,null,null,null,null,null,null,"Machilus grijsii黃絨潤楠","Machilus grijsii","黃絨潤楠",338]
[null,null,null,null,null,null,null,null,null,null,null,null,null,"Machilus kwangtungensis廣東潤楠","Machilus kwangtungensis","廣東潤楠",339]
[null,null,null,null,null,null,null,null,null,null,null,null,null,"Machilus leptophylla薄葉潤楠","Machilus leptophylla","薄葉潤楠",340]
[null,null,null,null,null,null,null,null,null,null,null,null,null,"Machilus oreophila水楠","Machilus oreophila","水楠",341]
[null,null,null,null,null,null,null,null,null,null,null,null,null,"Machilus pauhoi刨花潤楠","Machilus pauhoi","刨花潤楠",342]
[null,null,null,null,null,null,null,null,null,null,null,null,null,"Machilus robusta粗壯潤楠","Machilus robusta","粗壯潤楠",343]
[null,null,null,null,null,null,null,null,null,null,null,null,null,"Machilus thunbergii紅楠","Machilus thunbergii","紅楠",344]
[null,null,null,null,null,null,null,null,null,null,null,null,null,"Machilus velutina絨毛潤楠","Machilus velutina","絨毛潤楠",345]
[null,null,null,null,null,null,null,null,null,null,null,null,null,"Machilus wangchiana信宜潤楠","Machilus wangchiana","信宜潤楠",346]
[null,null,null,null,null,null,null,null,null,null,null,null,null,"Magnolia championii香港木蘭","Magnolia championii","香港木蘭",347]
[null,null,null,null,null,null,null,null,null,null,null,null,null,"Yulania denudata (syn. Magnolia denudata)玉蘭(玉堂春)","Yulania denudata (syn. Magnolia denudata)","玉蘭(玉堂春)",348]
[null,null,null,null,null,null,null,null,null,null,null,null,null,"Magnolia grandiflora荷花玉蘭(洋玉蘭)","Magnolia grandiflora","荷花玉蘭(洋玉蘭)",349]
[null,null,null,null,null,null,null,null,null,null,null,null,null,"Yulania liliiflora (syn. Magnolia liliiflora)紫玉蘭(辛夷)","Yulania liliiflora (syn. Magnolia liliiflora)","紫玉蘭(辛夷)",350]
[null,null,null,null,null,null,null,null,null,null,null,null,null,"Yulania x soulangeana (syn. Magnolia soulangeana) 二喬木蘭(紫玉蘭)","Yulania x soulangeana (syn. Magnolia soulangeana) ","二喬木蘭(紫玉蘭)",351]
[null,null,null,null,null,null,null,null,null,null,null,null,null,"Mallotus apelta白背葉(白桐)","Mallotus apelta","白背葉(白桐)",352]
[null,null,null,null,null,null,null,null,null,null,null,null,null,"Mallotus paniculatus白楸","Mallotus paniculatus","白楸",353]
[null,null,null,null,null,null,null,null,null,null,null,null,null,"Malus halliana垂絲海棠","Malus halliana","垂絲海棠",354]
[null,null,null,null,null,null,null,null,null,null,null,null,null,"Malus micromalus西府海棠","Malus micromalus","西府海棠",355]
[null,null,null,null,null,null,null,null,null,null,null,null,null,"Mangifera indica芒果","Mangifera indica","芒果",356]
[null,null,null,null,null,null,null,null,null,null,null,null,null,"Mangifera persiciformis扁桃","Mangifera persiciformis","扁桃",357]
[null,null,null,null,null,null,null,null,null,null,null,null,null,"Manglietia glauca灰木蓮","Manglietia glauca","灰木蓮",358]
[null,null,null,null,null,null,null,null,null,null,null,null,null,"Manglietia insignis紅花木蓮","Manglietia insignis","紅花木蓮",359]
[null,null,null,null,null,null,null,null,null,null,null,null,null,"Manglietia megaphylla大葉木蓮","Manglietia megaphylla","大葉木蓮",360]
[null,null,null,null,null,null,null,null,null,null,null,null,null,"Manilkara zapota人心果","Manilkara zapota","人心果",361]
[null,null,null,null,null,null,null,null,null,null,null,null,null,"Melaleuca cajuputi subsp. cumingiana白千層","Melaleuca cajuputi subsp. cumingiana","白千層",362]
[null,null,null,null,null,null,null,null,null,null,null,null,null,"Melaleuca styphelioides捲葉千層","Melaleuca styphelioides","捲葉千層",363]
[null,null,null,null,null,null,null,null,null,null,null,null,null,"Melia azedarach楝(苦楝)","Melia azedarach","楝(苦楝)",364]
[null,null,null,null,null,null,null,null,null,null,null,null,null,"Melicope pteleifolia (syn. Evodia lepta)密茱萸(三椏苦)","Melicope pteleifolia (syn. Evodia lepta)","密茱萸(三椏苦)",365]
[null,null,null,null,null,null,null,null,null,null,null,null,null,"Metasequoia glyptostroboides水杉","Metasequoia glyptostroboides","水杉",366]
[null,null,null,null,null,null,null,null,null,null,null,null,null,"Michelia champaca黃蘭","Michelia champaca","黃蘭",367]
[null,null,null,null,null,null,null,null,null,null,null,null,null,"Michelia chapensis樂昌含笑(景烈含笑)","Michelia chapensis","樂昌含笑(景烈含笑)",368]
[null,null,null,null,null,null,null,null,null,null,null,null,null,"Michelia figo含笑","Michelia figo","含笑",369]
[null,null,null,null,null,null,null,null,null,null,null,null,null,"Michelia macclurei醉香含笑(火力楠)","Michelia macclurei","醉香含笑(火力楠)",370]
[null,null,null,null,null,null,null,null,null,null,null,null,null,"Michelia maudiae深山含笑(莫氏含笑)","Michelia maudiae","深山含笑(莫氏含笑)",371]
[null,null,null,null,null,null,null,null,null,null,null,null,null,"Michelia x alba白蘭","Michelia x alba","白蘭",372]
[null,null,null,null,null,null,null,null,null,null,null,null,null,"Microcos nervosa破布葉(布渣葉)","Microcos nervosa","破布葉(布渣葉)",373]
[null,null,null,null,null,null,null,null,null,null,null,null,null,"Mimusops elengi香欖(牛油果)","Mimusops elengi","香欖(牛油果)",374]
[null,null,null,null,null,null,null,null,null,null,null,null,null,"Morus alba桑","Morus alba","桑",375]
[null,null,null,null,null,null,null,null,null,null,null,null,null,"Murraya paniculata九里香","Murraya paniculata","九里香",376]
[null,null,null,null,null,null,null,null,null,null,null,null,null,"Myrica rubra楊梅","Myrica rubra","楊梅",377]
[null,null,null,null,null,null,null,null,null,null,null,null,null,"Nageia nagi (syn. Podocarpus nagi)竹柏","Nageia nagi (syn. Podocarpus nagi)","竹柏",378]
[null,null,null,null,null,null,null,null,null,null,null,null,null,"Nauclea officinalis烏檀","Nauclea officinalis","烏檀",379]
[null,null,null,null,null,null,null,null,null,null,null,null,null,"Nauclea orientalis東方烏檀","Nauclea orientalis","東方烏檀",380]
[null,null,null,null,null,null,null,null,null,null,null,null,null,"Neodypsis decaryi三角葵","Neodypsis decaryi","三角葵",381]
[null,null,null,null,null,null,null,null,null,null,null,null,null,"Nerium oleander夾竹桃","Nerium oleander","夾竹桃",382]
[null,null,null,null,null,null,null,null,null,null,null,null,null,"Nerium oleander 'Album'白花夾竹桃","Nerium oleander 'Album'","白花夾竹桃",383]
[null,null,null,null,null,null,null,null,null,null,null,null,null,"Nerium oleander 'Varigatum plenum'花葉夾竹桃","Nerium oleander 'Varigatum plenum'","花葉夾竹桃",384]
[null,null,null,null,null,null,null,null,null,null,null,null,null,"Nolina recurvata酒瓶蘭","Nolina recurvata","酒瓶蘭",385]
[null,null,null,null,null,null,null,null,null,null,null,null,null,"Ormosia emarginata凹葉紅豆","Ormosia emarginata","凹葉紅豆",386]
[null,null,null,null,null,null,null,null,null,null,null,null,null,"Ormosia henryi花梨木","Ormosia henryi","花梨木",387]
[null,null,null,null,null,null,null,null,null,null,null,null,null,"Ormosia indurata韌莢紅豆","Ormosia indurata","韌莢紅豆",388]
[null,null,null,null,null,null,null,null,null,null,null,null,null,"Ormosia pachycarpa茸莢紅豆","Ormosia pachycarpa","茸莢紅豆",389]
[null,null,null,null,null,null,null,null,null,null,null,null,null,"Ormosia pinnata海南紅豆","Ormosia pinnata","海南紅豆",390]
[null,null,null,null,null,null,null,null,null,null,null,null,null,"Ormosia semicastrata軟莢紅豆","Ormosia semicastrata","軟莢紅豆",391]
[null,null,null,null,null,null,null,null,null,null,null,null,null,"Oroxylum indicum木蝴蝶(千層紙)","Oroxylum indicum","木蝴蝶(千層紙)",392]
[null,null,null,null,null,null,null,null,null,null,null,null,null,"Osmanthus fragrans桂花(木犀)","Osmanthus fragrans","桂花(木犀)",393]
[null,null,null,null,null,null,null,null,null,null,null,null,null,"Osmanthus matsumuranus牛矢果","Osmanthus matsumuranus","牛矢果",394]
[null,null,null,null,null,null,null,null,null,null,null,null,null,"Pachira aquatica瓜栗","Pachira aquatica","瓜栗",395]
[null,null,null,null,null,null,null,null,null,null,null,null,null,"Pachira macrocarpa瓜栗","Pachira macrocarpa","瓜栗",396]
[null,null,null,null,null,null,null,null,null,null,null,null,null,"Pandanus furcatus分叉露兜","Pandanus furcatus","分叉露兜",397]
[null,null,null,null,null,null,null,null,null,null,null,null,null,"Pandanus tectorius露兜樹","Pandanus tectorius","露兜樹",398]
[null,null,null,null,null,null,null,null,null,null,null,null,null,"Pandanus utilis扇葉露兜樹 (馬達加斯加露兜)","Pandanus utilis","扇葉露兜樹 (馬達加斯加露兜)",399]
[null,null,null,null,null,null,null,null,null,null,null,null,null,"Parkia javanica球花豆","Parkia javanica","球花豆",400]
[null,null,null,null,null,null,null,null,null,null,null,null,null,"Paulownia fortunei白花泡桐(泡桐)","Paulownia fortunei","白花泡桐(泡桐)",401]
[null,null,null,null,null,null,null,null,null,null,null,null,null,"Pavetta hongkongensis香港大沙葉(茜木)","Pavetta hongkongensis","香港大沙葉(茜木)",402]
[null,null,null,null,null,null,null,null,null,null,null,null,null,"Peltophorum pterocarpum盾柱木(雙翼豆)","Peltophorum pterocarpum","盾柱木(雙翼豆)",403]
[null,null,null,null,null,null,null,null,null,null,null,null,null,"Peltophorum tonkinense銀珠","Peltophorum tonkinense","銀珠",404]
[null,null,null,null,null,null,null,null,null,null,null,null,null,"Persea americana鱷梨 (牛油果)","Persea americana","鱷梨 (牛油果)",405]
[null,null,null,null,null,null,null,null,null,null,null,null,null,"Phoenix canariensis加那利刺葵","Phoenix canariensis","加那利刺葵",406]
[null,null,null,null,null,null,null,null,null,null,null,null,null,"Phoenix dactylifera海棗(棗椰樹)","Phoenix dactylifera","海棗(棗椰樹)",407]
[null,null,null,null,null,null,null,null,null,null,null,null,null,"Phoenix loureiroi刺葵","Phoenix loureiroi","刺葵",408]
[null,null,null,null,null,null,null,null,null,null,null,null,null,"Phoenix reclinata非洲海棗","Phoenix reclinata","非洲海棗",409]
[null,null,null,null,null,null,null,null,null,null,null,null,null,"Phoenix roebelenii日本葵(軟葉刺葵)","Phoenix roebelenii","日本葵(軟葉刺葵)",410]
[null,null,null,null,null,null,null,null,null,null,null,null,null,"Phoenix rupicola崖葵","Phoenix rupicola","崖葵",411]
[null,null,null,null,null,null,null,null,null,null,null,null,null,"Pinanga sinii燕尾山檳榔","Pinanga sinii","燕尾山檳榔",412]
[null,null,null,null,null,null,null,null,null,null,null,null,null,"Pinus elliottii濕地松(愛氏松)","Pinus elliottii","濕地松(愛氏松)",413]
[null,null,null,null,null,null,null,null,null,null,null,null,null,"Pinus massoniana馬尾松","Pinus massoniana","馬尾松",414]
[null,null,null,null,null,null,null,null,null,null,null,null,null,"Pinus taeda火炬松","Pinus taeda","火炬松",415]
[null,null,null,null,null,null,null,null,null,null,null,null,null,"Pithecellobium dulce牛蹄豆","Pithecellobium dulce","牛蹄豆",416]
[null,null,null,null,null,null,null,null,null,null,null,null,null,"Platanus x acerifolia英國梧桐(二球懸鈴木)","Platanus x acerifolia","英國梧桐(二球懸鈴木)",417]
[null,null,null,null,null,null,null,null,null,null,null,null,null,"Plumeria obtusa鈍葉雞蛋花","Plumeria obtusa","鈍葉雞蛋花",418]
[null,null,null,null,null,null,null,null,null,null,null,null,null,"Plumeria rubra雞蛋花","Plumeria rubra","雞蛋花",419]
[null,null,null,null,null,null,null,null,null,null,null,null,null,"Podocarpus costlalis蘭嶼羅漢松","Podocarpus costlalis","蘭嶼羅漢松",420]
[null,null,null,null,null,null,null,null,null,null,null,null,null,"Podocarpus macrophyllus羅漢松","Podocarpus macrophyllus","羅漢松",421]
[null,null,null,null,null,null,null,null,null,null,null,null,null,"Podocarpus neriifolius百日青","Podocarpus neriifolius","百日青",422]
[null,null,null,null,null,null,null,null,null,null,null,null,null,"Polyalthia longifolia var. pendula長葉暗羅","Polyalthia longifolia var. pendula","長葉暗羅",423]
[null,null,null,null,null,null,null,null,null,null,null,null,null,"Pongamia pinnata水黃皮","Pongamia pinnata","水黃皮",424]
[null,null,null,null,null,null,null,null,null,null,null,null,null,"Populus nigra 'Italica'箭杆楊","Populus nigra 'Italica'","箭杆楊",425]
[null,null,null,null,null,null,null,null,null,null,null,null,null,"Populus simonii小白楊","Populus simonii","小白楊",426]
[null,null,null,null,null,null,null,null,null,null,null,null,null,"Prunus campanulata鐘花櫻桃","Prunus campanulata","鐘花櫻桃",427]
[null,null,null,null,null,null,null,null,null,null,null,null,null,"Prunus cerasifera var. atropurpurea紅葉李","Prunus cerasifera var. atropurpurea","紅葉李",428]
[null,null,null,null,null,null,null,null,null,null,null,null,null,"Prunus japonica 'Sinensis'郁李(李樹)","Prunus japonica 'Sinensis'","郁李(李樹)",429]
[null,null,null,null,null,null,null,null,null,null,null,null,null,"Prunus mume梅","Prunus mume","梅",430]
[null,null,null,null,null,null,null,null,null,null,null,null,null,"Prunus persica桃","Prunus persica","桃",431]
[null,null,null,null,null,null,null,null,null,null,null,null,null,"Prunus phaeosticta腺葉桂櫻(腺葉野櫻)","Prunus phaeosticta","腺葉桂櫻(腺葉野櫻)",432]
[null,null,null,null,null,null,null,null,null,null,null,null,null,"Prunus salicina李","Prunus salicina","李",433]
[null,null,null,null,null,null,null,null,null,null,null,null,null,"Prunus serrulata櫻花","Prunus serrulata","櫻花",434]
[null,null,null,null,null,null,null,null,null,null,null,null,null,"Psidium guajava番石榴","Psidium guajava","番石榴",435]
[null,null,null,null,null,null,null,null,null,null,null,null,null,"Pterocarpus indicus紫檀","Pterocarpus indicus","紫檀",436]
[null,null,null,null,null,null,null,null,null,null,null,null,null,"Pterocarya stenoptera楓楊","Pterocarya stenoptera","楓楊",437]
[null,null,null,null,null,null,null,null,null,null,null,null,null,"Pterospermum heterophyllum翻白葉樹","Pterospermum heterophyllum","翻白葉樹",438]
[null,null,null,null,null,null,null,null,null,null,null,null,null,"Ptychosperma macarthurii齒葉葵(麥氏葵)","Ptychosperma macarthurii","齒葉葵(麥氏葵)",439]
[null,null,null,null,null,null,null,null,null,null,null,null,null,"Punica granatum安石榴(石榴)","Punica granatum","安石榴(石榴)",440]
[null,null,null,null,null,null,null,null,null,null,null,null,null,"Pygeum topengii臀果木","Pygeum topengii","臀果木",441]
[null,null,null,null,null,null,null,null,null,null,null,null,null,"Pyracantha crenulata火棘(細圓齒火棘)","Pyracantha crenulata","火棘(細圓齒火棘)",442]
[null,null,null,null,null,null,null,null,null,null,null,null,null,"Pyrus calleryana豆梨(麻子梨)","Pyrus calleryana","豆梨(麻子梨)",443]
[null,null,null,null,null,null,null,null,null,null,null,null,null,"Pyrus pyrifolia沙梨(梨)","Pyrus pyrifolia","沙梨(梨)",444]
[null,null,null,null,null,null,null,null,null,null,null,null,null,"Quercus acutissima麻櫟","Quercus acutissima","麻櫟",445]
[null,null,null,null,null,null,null,null,null,null,null,null,null,"Quercus fabri白櫟","Quercus fabri","白櫟",446]
[null,null,null,null,null,null,null,null,null,null,null,null,null,"Radermachera hainanensis海南菜豆樹","Radermachera hainanensis","海南菜豆樹",447]
[null,null,null,null,null,null,null,null,null,null,null,null,null,"Ravenala madagascariensis旅人蕉","Ravenala madagascariensis","旅人蕉",448]
[null,null,null,null,null,null,null,null,null,null,null,null,null,"Ravenea glauca迷你國皇椰子","Ravenea glauca","迷你國皇椰子",449]
[null,null,null,null,null,null,null,null,null,null,null,null,null,"Ravenea rivularis國皇椰子","Ravenea rivularis","國皇椰子",450]
[null,null,null,null,null,null,null,null,null,null,null,null,null,"Reevesia thyrsoidea梭羅樹","Reevesia thyrsoidea","梭羅樹",451]
[null,null,null,null,null,null,null,null,null,null,null,null,null,"Rhaphiolepis indica石斑木(車輪梅)","Rhaphiolepis indica","石斑木(車輪梅)",452]
[null,null,null,null,null,null,null,null,null,null,null,null,null,"Rhodoleia championii紅苞木(紅花荷)","Rhodoleia championii","紅苞木(紅花荷)",453]
[null,null,null,null,null,null,null,null,null,null,null,null,null,"Rhus chinensis鹽膚木","Rhus chinensis","鹽膚木",454]
[null,null,null,null,null,null,null,null,null,null,null,null,null,"Rhus succedanea木蠟樹(野漆樹)","Rhus succedanea","木蠟樹(野漆樹)",455]
[null,null,null,null,null,null,null,null,null,null,null,null,null,"Roystonea regia大王椰子(王棕)","Roystonea regia","大王椰子(王棕)",456]
[null,null,null,null,null,null,null,null,null,null,null,null,null,"Sabal palmetto箸棕","Sabal palmetto","箸棕",457]
[null,null,null,null,null,null,null,null,null,null,null,null,null,"Salix babylonica垂柳","Salix babylonica","垂柳",458]
[null,null,null,null,null,null,null,null,null,null,null,null,null,"Sandoricum koetjape山道楝","Sandoricum koetjape","山道楝",459]
[null,null,null,null,null,null,null,null,null,null,null,null,null,"Sapindus saponaria (syn. Sapindus mukorossi)無患子(木患子)","Sapindus saponaria (syn. Sapindus mukorossi)","無患子(木患子)",460]
[null,null,null,null,null,null,null,null,null,null,null,null,null,"Sapium discolor山烏桕","Sapium discolor","山烏桕",461]
[null,null,null,null,null,null,null,null,null,null,null,null,null,"Sapium sebiferum烏桕","Sapium sebiferum","烏桕",462]
[null,null,null,null,null,null,null,null,null,null,null,null,null,"Saraca dives中國無憂花","Saraca dives","中國無憂花",463]
[null,null,null,null,null,null,null,null,null,null,null,null,null,"Saraca indica無憂花","Saraca indica","無憂花",464]
[null,null,null,null,null,null,null,null,null,null,null,null,null,"Sarcosperma laurinum肉實樹","Sarcosperma laurinum","肉實樹",465]
[null,null,null,null,null,null,null,null,null,null,null,null,null,"Saurauia tristyla水東哥","Saurauia tristyla","水東哥",466]
[null,null,null,null,null,null,null,null,null,null,null,null,null,"Schefflera actinophylla傘樹","Schefflera actinophylla","傘樹",467]
[null,null,null,null,null,null,null,null,null,null,null,null,null,"Schefflera heptaphylla鵝掌柴(鴨腳木)","Schefflera heptaphylla","鵝掌柴(鴨腳木)",468]
[null,null,null,null,null,null,null,null,null,null,null,null,null,"Schima superba木荷(荷樹)","Schima superba","木荷(荷樹)",469]
[null,null,null,null,null,null,null,null,null,null,null,null,null,"Schizolobium parahyba巴西豆","Schizolobium parahyba","巴西豆",470]
[null,null,null,null,null,null,null,null,null,null,null,null,null,"Scolopia chinensis刺柊","Scolopia chinensis","刺柊",471]
[null,null,null,null,null,null,null,null,null,null,null,null,null,"Scolopia saeva廣東刺柊","Scolopia saeva","廣東刺柊",472]
[null,null,null,null,null,null,null,null,null,null,null,null,null,"Senna siamea (syn. Cassia siamea)鐵刀木","Senna siamea (syn. Cassia siamea)","鐵刀木",473]
[null,null,null,null,null,null,null,null,null,null,null,null,null,"Senna surattensis (syn. Cassia surattensis)黃槐決明(黃槐)","Senna surattensis (syn. Cassia surattensis)","黃槐決明(黃槐)",474]
[null,null,null,null,null,null,null,null,null,null,null,null,null,"Sinosideroxylon wightianum革葉鐵欖","Sinosideroxylon wightianum","革葉鐵欖",475]
[null,null,null,null,null,null,null,null,null,null,null,null,null,"Sloanea sinensis猴歡喜","Sloanea sinensis","猴歡喜",476]
[null,null,null,null,null,null,null,null,null,null,null,null,null,"Sophora japonica槐","Sophora japonica","槐",477]
[null,null,null,null,null,null,null,null,null,null,null,null,null,"Sophora japonica var. penaula龍爪槐","Sophora japonica var. penaula","龍爪槐",478]
[null,null,null,null,null,null,null,null,null,null,null,null,null,"Sophora tomentosa絨毛槐(海南豆樹)","Sophora tomentosa","絨毛槐(海南豆樹)",479]
[null,null,null,null,null,null,null,null,null,null,null,null,null,"Spathodea campanulata火焰樹","Spathodea campanulata","火焰樹",480]
[null,null,null,null,null,null,null,null,null,null,null,null,null,"Sphaeropteris lepifera筆筒樹","Sphaeropteris lepifera","筆筒樹",481]
[null,null,null,null,null,null,null,null,null,null,null,null,null,"Spondias lakonensis嶺南酸棗","Spondias lakonensis","嶺南酸棗",482]
[null,null,null,null,null,null,null,null,null,null,null,null,null,"Stenocarpus sinuatus火輪樹","Stenocarpus sinuatus","火輪樹",483]
[null,null,null,null,null,null,null,null,null,null,null,null,null,"Sterculia lanceolata假蘋婆","Sterculia lanceolata","假蘋婆",484]
[null,null,null,null,null,null,null,null,null,null,null,null,null,"Sterculia nobilis蘋婆","Sterculia nobilis","蘋婆",485]
[null,null,null,null,null,null,null,null,null,null,null,null,null,"Strelitzia nicolai大鶴望蘭(扇蕉)","Strelitzia nicolai","大鶴望蘭(扇蕉)",486]
[null,null,null,null,null,null,null,null,null,null,null,null,null,"Styrax odoratissimus芬芳安息香","Styrax odoratissimus","芬芳安息香",487]
[null,null,null,null,null,null,null,null,null,null,null,null,null,"Styrax suberifolius 栓葉安息香(紅皮) ","Styrax suberifolius ","栓葉安息香(紅皮) ",488]
[null,null,null,null,null,null,null,null,null,null,null,null,null,"Swietenia mahagoni桃花心木","Swietenia mahagoni","桃花心木",489]
[null,null,null,null,null,null,null,null,null,null,null,null,null,"Syagrus romanzoffiana皇后葵(金山葵)","Syagrus romanzoffiana","皇后葵(金山葵)",490]
[null,null,null,null,null,null,null,null,null,null,null,null,null,"Symplocos cochinchinensis var. laurina黃牛奶樹","Symplocos cochinchinensis var. laurina","黃牛奶樹",491]
[null,null,null,null,null,null,null,null,null,null,null,null,null,"Syncarpia glomulifera白心膠","Syncarpia glomulifera","白心膠",492]
[null,null,null,null,null,null,null,null,null,null,null,null,null,"Syzygium cumini烏墨(海南蒲桃)","Syzygium cumini","烏墨(海南蒲桃)",493]
[null,null,null,null,null,null,null,null,null,null,null,null,null,"Syzygium hancei韓氏蒲桃(紅鱗蒲桃)","Syzygium hancei","韓氏蒲桃(紅鱗蒲桃)",494]
[null,null,null,null,null,null,null,null,null,null,null,null,null,"Syzygium jambos蒲桃","Syzygium jambos","蒲桃",495]
[null,null,null,null,null,null,null,null,null,null,null,null,null,"Syzygium levinei山蒲桃","Syzygium levinei","山蒲桃",496]
[null,null,null,null,null,null,null,null,null,null,null,null,null,"Syzygium rehderianum紅枝蒲桃","Syzygium rehderianum","紅枝蒲桃",497]
[null,null,null,null,null,null,null,null,null,null,null,null,null,"Syzygium samarangense洋蒲桃","Syzygium samarangense","洋蒲桃",498]
[null,null,null,null,null,null,null,null,null,null,null,null,null,"Tabebuia argentea銀鱗風鈴木","Tabebuia argentea","銀鱗風鈴木",499]
[null,null,null,null,null,null,null,null,null,null,null,null,null,"Tabebuia chrysantha (syn. Tabebuia chrysotricha)黃鐘木(風鈴木)","Tabebuia chrysantha (syn. Tabebuia chrysotricha)","黃鐘木(風鈴木)",500]
[null,null,null,null,null,null,null,null,null,null,null,null,null,"Tabebuia donnell-smithii史氏鐘花","Tabebuia donnell-smithii","史氏鐘花",501]
[null,null,null,null,null,null,null,null,null,null,null,null,null,"Tabebuia impetiginosa紫花風鈴木","Tabebuia impetiginosa","紫花風鈴木",502]
[null,null,null,null,null,null,null,null,null,null,null,null,null,"Taxodium ascendens池杉","Taxodium ascendens","池杉",503]
[null,null,null,null,null,null,null,null,null,null,null,null,null,"Taxodium distichum落羽杉","Taxodium distichum","落羽杉",504]
[null,null,null,null,null,null,null,null,null,null,null,null,null,"Tecoma stans黃鐘花","Tecoma stans","黃鐘花",505]
[null,null,null,null,null,null,null,null,null,null,null,null,null,"Tectona grandis柚木","Tectona grandis","柚木",506]
[null,null,null,null,null,null,null,null,null,null,null,null,null,"Terminalia arjuna阿江欖仁","Terminalia arjuna","阿江欖仁",507]
[null,null,null,null,null,null,null,null,null,null,null,null,null,"Terminalia calamansanai菲律賓欖仁","Terminalia calamansanai","菲律賓欖仁",508]
[null,null,null,null,null,null,null,null,null,null,null,null,null,"Terminalia catappa欖仁樹","Terminalia catappa","欖仁樹",509]
[null,null,null,null,null,null,null,null,null,null,null,null,null,"Terminalia hainanensis海南欖仁","Terminalia hainanensis","海南欖仁",510]
[null,null,null,null,null,null,null,null,null,null,null,null,null,"Terminalia mantaly小葉欖仁","Terminalia mantaly","小葉欖仁",511]
[null,null,null,null,null,null,null,null,null,null,null,null,null,"Terminalia mantaly 'Tricolour'錦葉欖仁","Terminalia mantaly 'Tricolour'","錦葉欖仁",512]
[null,null,null,null,null,null,null,null,null,null,null,null,null,"Terminalia muelleri美洲欖仁","Terminalia muelleri","美洲欖仁",513]
[null,null,null,null,null,null,null,null,null,null,null,null,null,"Ternstroemia gymnanthera厚皮香","Ternstroemia gymnanthera","厚皮香",514]
[null,null,null,null,null,null,null,null,null,null,null,null,null,"Tetradium glabrifolium楝葉吳茱萸","Tetradium glabrifolium","楝葉吳茱萸",515]
[null,null,null,null,null,null,null,null,null,null,null,null,null,"Thespesia populnea恒春黃槿(繖楊)","Thespesia populnea","恒春黃槿(繖楊)",516]
[null,null,null,null,null,null,null,null,null,null,null,null,null,"Thevetia peruviana黃花夾竹桃","Thevetia peruviana","黃花夾竹桃",517]
[null,null,null,null,null,null,null,null,null,null,null,null,null,"Theobroma cacao可可樹","Theobroma cacao","可可樹",518]
[null,null,null,null,null,null,null,null,null,null,null,null,null,"Platycladus orientalis側柏(扁柏)","Platycladus orientalis","側柏(扁柏)",519]
[null,null,null,null,null,null,null,null,null,null,null,null,null,"Thuja orientalis 'Aurea Nana'金柏","Thuja orientalis 'Aurea Nana'","金柏",520]
[null,null,null,null,null,null,null,null,null,null,null,null,null,"Toona rubriflora紅花香椿","Toona rubriflora","紅花香椿",521]
[null,null,null,null,null,null,null,null,null,null,null,null,null,"Toona sinensis香椿","Toona sinensis","香椿",522]
[null,null,null,null,null,null,null,null,null,null,null,null,null,"Trachycarpus fortunei棕櫚","Trachycarpus fortunei","棕櫚",523]
[null,null,null,null,null,null,null,null,null,null,null,null,null,"Trema tomentosa山黃麻","Trema tomentosa","山黃麻",524]
[null,null,null,null,null,null,null,null,null,null,null,null,null,"Tutcheria microcarpa小果石筆木","Tutcheria microcarpa","小果石筆木",525]
[null,null,null,null,null,null,null,null,null,null,null,null,null,"Pyrenaria spectabilis (syn. Tutcheria spectabilis)石筆木","Pyrenaria spectabilis (syn. Tutcheria spectabilis)","石筆木",526]
[null,null,null,null,null,null,null,null,null,null,null,null,null,"Ulmus parvifolia榔榆","Ulmus parvifolia","榔榆",527]
[null,null,null,null,null,null,null,null,null,null,null,null,null,"Ulmus pumila 'Pendula'垂枝榆","Ulmus pumila 'Pendula'","垂枝榆",528]
[null,null,null,null,null,null,null,null,null,null,null,null,null,"Veitchia merrillii聖誕椰子","Veitchia merrillii","聖誕椰子",529]
[null,null,null,null,null,null,null,null,null,null,null,null,null,"Vernicia fordii (syn. Aleurites fordii)油桐(三年桐)","Vernicia fordii (syn. Aleurites fordii)","油桐(三年桐)",530]
[null,null,null,null,null,null,null,null,null,null,null,null,null,"Vernicia montana木油樹(千年桐)","Vernicia montana","木油樹(千年桐)",531]
[null,null,null,null,null,null,null,null,null,null,null,null,null,"Viburnum odoratissimum珊瑚樹","Viburnum odoratissimum","珊瑚樹",532]
[null,null,null,null,null,null,null,null,null,null,null,null,null,"Vitex tripinnata越南牡荊(小花牡荊)","Vitex tripinnata","越南牡荊(小花牡荊)",533]
[null,null,null,null,null,null,null,null,null,null,null,null,null,"Vitex quinata山牡荊","Vitex quinata","山牡荊",534]
[null,null,null,null,null,null,null,null,null,null,null,null,null,"Washingtonia robusta大絲葵(華盛頓葵)","Washingtonia robusta","大絲葵(華盛頓葵)",535]
[null,null,null,null,null,null,null,null,null,null,null,null,null,"Wodyetia bifurcata狐尾棕 (狐尾椰子)","Wodyetia bifurcata","狐尾棕 (狐尾椰子)",536]
[null,null,null,null,null,null,null,null,null,null,null,null,null,"Wollemia nobilis恐龍杉","Wollemia nobilis","恐龍杉",537]
[null,null,null,null,null,null,null,null,null,null,null,null,null,"Wrightia laevis藍樹","Wrightia laevis","藍樹",539]
[null,null,null,null,null,null,null,null,null,null,null,null,null,"Xylosma longifolium長葉柞木","Xylosma longifolium","長葉柞木",540]
[null,null,null,null,null,null,null,null,null,null,null,null,null,"Xylosma racemorum柞木","Xylosma racemorum","柞木",541]
[null,null,null,null,null,null,null,null,null,null,null,null,null,"Zanthoxylum ailanthoides椿葉花椒","Zanthoxylum ailanthoides","椿葉花椒",542]
[null,null,null,null,null,null,null,null,null,null,null,null,null,"Zanthoxylum avicennae簕欓花椒(簕欓)","Zanthoxylum avicennae","簕欓花椒(簕欓)",543]
[null,null,null,null,null,null,null,null,null,null,null,null,null,"Zanthoxylum myriacanthum大葉臭花椒","Zanthoxylum myriacanthum","大葉臭花椒",544]
[null,null,null,null,null,null,null,null,null,null,null,null,null,"Zanthoxylum ovalifolium異葉花椒","Zanthoxylum ovalifolium","異葉花椒",545]
[null,null,null,null,null,null,null,null,null,null,null,null,null,"Ziziphus jujuba棗","Ziziphus jujuba","棗",546]
[null,null,null,null,null,null,null,null,null,null,null,null,null,"Ziziphus mauritiana滇刺棗","Ziziphus mauritiana","滇刺棗",547]
[null,null,null,null,null,null,null,null,null,null,null,null,null,"Ilex spp.冬青屬","Ilex spp.","冬青屬",548]
[null,null,null,null,null,null,null,null,null,null,null,null,null,"Ilex asprella梅葉冬青 (秤星樹)","Ilex asprella","梅葉冬青 (秤星樹)",549]
[null,null,null,null,null,null,null,null,null,null,null,null,null,"Ilex pubescens毛冬青","Ilex pubescens","毛冬青",550]
[null,null,null,null,null,null,null,null,null,null,null,null,null,"Jacaranda spp.藍花楹屬","Jacaranda spp.","藍花楹屬",551]
[null,null,null,null,null,null,null,null,null,null,null,null,null,"Acacia spp.金合歡屬","Acacia spp.","金合歡屬",552]
[null,null,null,null,null,null,null,null,null,null,null,null,null,"Jatropha integerrima全緣葉麻瘋樹(全緣葉珊瑚)","Jatropha integerrima","全緣葉麻瘋樹(全緣葉珊瑚)",553]
[null,null,null,null,null,null,null,null,null,null,null,null,null,"Jatropha pandurifolia日日櫻","Jatropha pandurifolia","日日櫻",554]
[null,null,null,null,null,null,null,null,null,null,null,null,null,"Juniperus spp.刺柏屬","Juniperus spp.","刺柏屬",555]
[null,null,null,null,null,null,null,null,null,null,null,null,null,"Acer spp.槭樹屬","Acer spp.","槭樹屬",556]
[null,null,null,null,null,null,null,null,null,null,null,null,null,"Khaya spp.非洲楝屬","Khaya spp.","非洲楝屬",557]
[null,null,null,null,null,null,null,null,null,null,null,null,null,"Acer sino-oblongum濱海槭","Acer sino-oblongum","濱海槭",558]
[null,null,null,null,null,null,null,null,null,null,null,null,null,"Adina pilulifera水團花","Adina pilulifera","水團花",559]
[null,null,null,null,null,null,null,null,null,null,null,null,null,"Aesculus californica加州七葉樹","Aesculus californica","加州七葉樹",560]
[null,null,null,null,null,null,null,null,null,null,null,null,null,"Aesculus chinensis七葉樹","Aesculus chinensis","七葉樹",561]
[null,null,null,null,null,null,null,null,null,null,null,null,null,"Aidia canthioides香楠 (山黃皮)","Aidia canthioides","香楠 (山黃皮)",562]
[null,null,null,null,null,null,null,null,null,null,null,null,null,"Albizia spp.合歡屬","Albizia spp.","合歡屬",563]
[null,null,null,null,null,null,null,null,null,null,null,null,null,"Lagerstroemia spp.紫薇屬","Lagerstroemia spp.","紫薇屬",564]
[null,null,null,null,null,null,null,null,null,null,null,null,null,"Antirhea chinensis 毛茶","Antirhea chinensis ","毛茶",565]
[null,null,null,null,null,null,null,null,null,null,null,null,null,"Latania lontaroides紅棕櫚","Latania lontaroides","紅棕櫚",566]
[null,null,null,null,null,null,null,null,null,null,null,null,null,"Aralia chinensis楤木","Aralia chinensis","楤木",567]
[null,null,null,null,null,null,null,null,null,null,null,null,null,"Liriodendron chinense馬褂木(鵝掌楸)","Liriodendron chinense","馬褂木(鵝掌楸)",568]
[null,null,null,null,null,null,null,null,null,null,null,null,null,"Lithocarpus spp.柯屬","Lithocarpus spp.","柯屬",569]
[null,null,null,null,null,null,null,null,null,null,null,null,null,"Litsea spp.木薑子屬","Litsea spp.","木薑子屬",570]
[null,null,null,null,null,null,null,null,null,null,null,null,null,"Ardisia quinquegona羅傘樹","Ardisia quinquegona","羅傘樹",571]
[null,null,null,null,null,null,null,null,null,null,null,null,null,"Areca triandra三藥檳榔","Areca triandra","三藥檳榔",572]
[null,null,null,null,null,null,null,null,null,null,null,null,null,"Litsea rotundifolia var. oblongifolia豺皮樟 ","Litsea rotundifolia var. oblongifolia","豺皮樟 ",573]
[null,null,null,null,null,null,null,null,null,null,null,null,null,"Arenga engleri山棕(白欖王)","Arenga engleri","山棕(白欖王)",574]
[null,null,null,null,null,null,null,null,null,null,null,null,null,"Loropetalum chinense rubrum紅花繼木","Loropetalum chinense rubrum","紅花繼木",575]
[null,null,null,null,null,null,null,null,null,null,null,null,null,"Artocarpus spp.桂木屬","Artocarpus spp.","桂木屬",576]
[null,null,null,null,null,null,null,null,null,null,null,null,null,"Machilus spp.潤楠屬","Machilus spp.","潤楠屬",577]
[null,null,null,null,null,null,null,null,null,null,null,null,null,"Artocarpus tonkinensis胭脂樹","Artocarpus tonkinensis","胭脂樹",578]
[null,null,null,null,null,null,null,null,null,null,null,null,null,"Bambusa spp.簕竹屬","Bambusa spp.","簕竹屬",579]
[null,null,null,null,null,null,null,null,null,null,null,null,null,"Bambusa multiplex孝順竹(蓬來竹)","Bambusa multiplex","孝順竹(蓬來竹)",580]
[null,null,null,null,null,null,null,null,null,null,null,null,null,"Mallotus philippensis粗糠柴","Mallotus philippensis","粗糠柴",581]
[null,null,null,null,null,null,null,null,null,null,null,null,null,"Bambusa tuldoides青稈竹(花眉竹)","Bambusa tuldoides","青稈竹(花眉竹)",582]
[null,null,null,null,null,null,null,null,null,null,null,null,null,"Markhamia stipulata var. kerrii貓尾木","Markhamia stipulata var. kerrii","貓尾木",583]
[null,null,null,null,null,null,null,null,null,null,null,null,null,"Melaleuca spp.白千層屬","Melaleuca spp.","白千層屬",584]
[null,null,null,null,null,null,null,null,null,null,null,null,null,"Bambusa ventricosa佛肚竹","Bambusa ventricosa","佛肚竹",585]
[null,null,null,null,null,null,null,null,null,null,null,null,null,"Melaleuca bracteata黃金香柳","Melaleuca bracteata","黃金香柳",586]
[null,null,null,null,null,null,null,null,null,null,null,null,null,"Bambusa vulgaris 'Vittata'黃金間碧竹","Bambusa vulgaris 'Vittata'","黃金間碧竹",587]
[null,null,null,null,null,null,null,null,null,null,null,null,null,"Bauhinia spp.羊蹄甲屬","Bauhinia spp.","羊蹄甲屬",588]
[null,null,null,null,null,null,null,null,null,null,null,null,null,"Bauhinia acuminata矮白花羊蹄甲","Bauhinia acuminata","矮白花羊蹄甲",589]
[null,null,null,null,null,null,null,null,null,null,null,null,null,"Bauhinia galpinii嘉氏羊蹄甲","Bauhinia galpinii","嘉氏羊蹄甲",590]
[null,null,null,null,null,null,null,null,null,null,null,null,null,"Memecylon ligustrifolium 谷木","Memecylon ligustrifolium ","谷木",591]
[null,null,null,null,null,null,null,null,null,null,null,null,null,"Beaucarnea recurvata酒瓶蘭","Beaucarnea recurvata","酒瓶蘭",592]
[null,null,null,null,null,null,null,null,null,null,null,null,null,"Moringa oleifera辣木","Moringa oleifera","辣木",593]
[null,null,null,null,null,null,null,null,null,null,null,null,null,"Bischofia spp.秋楓屬","Bischofia spp.","秋楓屬",594]
[null,null,null,null,null,null,null,null,null,null,null,null,null,"Moringa thouarsii象腳樹(象腿木)","Moringa thouarsii","象腳樹(象腿木)",595]
[null,null,null,null,null,null,null,null,null,null,null,null,null,"Bismarckia nobilis霸王棕","Bismarckia nobilis","霸王棕",596]
[null,null,null,null,null,null,null,null,null,null,null,null,null,"Musa spp.芭蕉屬","Musa spp.","芭蕉屬",597]
[null,null,null,null,null,null,null,null,null,null,null,null,null,"Bombax spp.木棉屬","Bombax spp.","木棉屬",598]
[null,null,null,null,null,null,null,null,null,null,null,null,null,"Musa x paradisiaca大蕉(甘蕉)","Musa x paradisiaca","大蕉(甘蕉)",599]
[null,null,null,null,null,null,null,null,null,null,null,null,null,"Bougainvillea glabra 'Variegata'花葉簕杜鵑","Bougainvillea glabra 'Variegata'","花葉簕杜鵑",600]
[null,null,null,null,null,null,null,null,null,null,null,null,null,"Myrsine seguinii 密花樹","Myrsine seguinii ","密花樹",601]
[null,null,null,null,null,null,null,null,null,null,null,null,null,"Bougainvillea spectabilis光葉子花 (簕杜鵑)","Bougainvillea spectabilis","光葉子花 (簕杜鵑)",602]
[null,null,null,null,null,null,null,null,null,null,null,null,null,"Brachychiton spp.-","Brachychiton spp.","-",603]
[null,null,null,null,null,null,null,null,null,null,null,null,null,"Caesalpinia pulcherrima洋金鳳(金鳳花)","Caesalpinia pulcherrima","洋金鳳(金鳳花)",604]
[null,null,null,null,null,null,null,null,null,null,null,null,null,"Callistemon spp.紅千層屬","Callistemon spp.","紅千層屬",605]
[null,null,null,null,null,null,null,null,null,null,null,null,null,"Callistemon formosus美麗紅千層","Callistemon formosus","美麗紅千層",606]
[null,null,null,null,null,null,null,null,null,null,null,null,null,"Callistemon hybridus黃金香柳","Callistemon hybridus","黃金香柳",607]
[null,null,null,null,null,null,null,null,null,null,null,null,null,"Camellia spp.山茶屬","Camellia spp.","山茶屬",608]
[null,null,null,null,null,null,null,null,null,null,null,null,null,"Paulownia tomentosa毛泡桐","Paulownia tomentosa","毛泡桐",609]
[null,null,null,null,null,null,null,null,null,null,null,null,null,"Peltophorum spp.盾柱木屬","Peltophorum spp.","盾柱木屬",610]
[null,null,null,null,null,null,null,null,null,null,null,null,null,"Camptotheca acuminata喜樹","Camptotheca acuminata","喜樹",611]
[null,null,null,null,null,null,null,null,null,null,null,null,null,"Pentaphylax euryoides五列木","Pentaphylax euryoides","五列木",612]
[null,null,null,null,null,null,null,null,null,null,null,null,null,"Phoenix hanceana var. Formosana台灣海棗","Phoenix hanceana var. Formosana","台灣海棗",613]
[null,null,null,null,null,null,null,null,null,null,null,null,null,"Caryota mitis短穗魚尾葵(小魚尾葵)","Caryota mitis","短穗魚尾葵(小魚尾葵)",614]
[null,null,null,null,null,null,null,null,null,null,null,null,null,"Phoenix robusta壯幹海棗","Phoenix robusta","壯幹海棗",615]
[null,null,null,null,null,null,null,null,null,null,null,null,null,"Phoenix sylvestris銀海棗","Phoenix sylvestris","銀海棗",616]
[null,null,null,null,null,null,null,null,null,null,null,null,null,"Photinia benthamiana閩粵石楠","Photinia benthamiana","閩粵石楠",617]
[null,null,null,null,null,null,null,null,null,null,null,null,null,"Photinia raupingensis饒平石楠","Photinia raupingensis","饒平石楠",618]
[null,null,null,null,null,null,null,null,null,null,null,null,null,"Phyllanthus emblica餘甘子(油甘子)","Phyllanthus emblica","餘甘子(油甘子)",619]
[null,null,null,null,null,null,null,null,null,null,null,null,null,"Phyllostachys nigra紫竹","Phyllostachys nigra","紫竹",620]
[null,null,null,null,null,null,null,null,null,null,null,null,null,"Castanopsis spp.錐屬","Castanopsis spp.","錐屬",621]
[null,null,null,null,null,null,null,null,null,null,null,null,null,"Pittosporum tobira海桐","Pittosporum tobira","海桐",622]
[null,null,null,null,null,null,null,null,null,null,null,null,null,"Chamaecyparis obtusa日本扁柏","Chamaecyparis obtusa","日本扁柏",623]
[null,null,null,null,null,null,null,null,null,null,null,null,null,"Platanus spp.懸鈴木屬","Platanus spp.","懸鈴木屬",624]
[null,null,null,null,null,null,null,null,null,null,null,null,null,"Chamaedorea elegans袖珍椰子","Chamaedorea elegans","袖珍椰子",625]
[null,null,null,null,null,null,null,null,null,null,null,null,null,"Claoxylon spp.白桐樹屬","Claoxylon spp.","白桐樹屬",626]
[null,null,null,null,null,null,null,null,null,null,null,null,null,"Plumeria rubra var. acutifolia黃雞蛋花","Plumeria rubra var. acutifolia","黃雞蛋花",627]
[null,null,null,null,null,null,null,null,null,null,null,null,null,"Podocarpus spp.羅漢松屬","Podocarpus spp.","羅漢松屬",628]
[null,null,null,null,null,null,null,null,null,null,null,null,null,"Clerodendrum quadriloculare煙火樹","Clerodendrum quadriloculare","煙火樹",629]
[null,null,null,null,null,null,null,null,null,null,null,null,null,"Cordia spp.破布木屬","Cordia spp.","破布木屬",630]
[null,null,null,null,null,null,null,null,null,null,null,null,null,"Crateva spp.魚木屬","Crateva spp.","魚木屬",631]
[null,null,null,null,null,null,null,null,null,null,null,null,null,"Polyspora axillaris大頭茶","Polyspora axillaris","大頭茶",632]
[null,null,null,null,null,null,null,null,null,null,null,null,null,"Cryptocarya chinensis厚殼桂","Cryptocarya chinensis","厚殼桂",633]
[null,null,null,null,null,null,null,null,null,null,null,null,null,"Cupressus spp.柏木屬","Cupressus spp.","柏木屬",634]
[null,null,null,null,null,null,null,null,null,null,null,null,null,"Cupressus sempervirens地中海柏木","Cupressus sempervirens","地中海柏木",635]
[null,null,null,null,null,null,null,null,null,null,null,null,null,"Pouteria campechiana蛋黃果","Pouteria campechiana","蛋黃果",636]
[null,null,null,null,null,null,null,null,null,null,null,null,null,"Prunus spp.櫻桃屬","Prunus spp.","櫻桃屬",637]
[null,null,null,null,null,null,null,null,null,null,null,null,null,"Cycas media澳洲蘇鐵","Cycas media","澳洲蘇鐵",638]
[null,null,null,null,null,null,null,null,null,null,null,null,null,"Cycas revoluta蘇鐵","Cycas revoluta","蘇鐵",639]
[null,null,null,null,null,null,null,null,null,null,null,null,null,"Cyclobalanopsis spp.青岡屬","Cyclobalanopsis spp.","青岡屬",640]
[null,null,null,null,null,null,null,null,null,null,null,null,null,"Pterocarpus spp.紫檀屬","Pterocarpus spp.","紫檀屬",641]
[null,null,null,null,null,null,null,null,null,null,null,null,null,"Putranjiva roxburghii假黃楊(藥用核果木)","Putranjiva roxburghii","假黃楊(藥用核果木)",642]
[null,null,null,null,null,null,null,null,null,null,null,null,null,"Rhapis excelsa棕竹","Rhapis excelsa","棕竹",643]
[null,null,null,null,null,null,null,null,null,null,null,null,null,"Davidia involucrata珙桐","Davidia involucrata","珙桐",644]
[null,null,null,null,null,null,null,null,null,null,null,null,null,"Rhus hypoleuca白背鹽膚木 (白背漆)","Rhus hypoleuca","白背鹽膚木 (白背漆)",645]
[null,null,null,null,null,null,null,null,null,null,null,null,null,"Delonix spp.鳳凰木屬","Delonix spp.","鳳凰木屬",646]
[null,null,null,null,null,null,null,null,null,null,null,null,null,"Roystonea oleracea菜王棕","Roystonea oleracea","菜王棕",647]
[null,null,null,null,null,null,null,null,null,null,null,null,null,"Desmos chinensis 假鷹爪","Desmos chinensis ","假鷹爪",648]
[null,null,null,null,null,null,null,null,null,null,null,null,null,"Salix spp.楊柳屬","Salix spp.","楊柳屬",649]
[null,null,null,null,null,null,null,null,null,null,null,null,null,"Sapindus spp.無患子屬","Sapindus spp.","無患子屬",650]
[null,null,null,null,null,null,null,null,null,null,null,null,null,"Dracaena draco龍血樹","Dracaena draco","龍血樹",651]
[null,null,null,null,null,null,null,null,null,null,null,null,null,"Dracaena fragrans巴西鐵樹","Dracaena fragrans","巴西鐵樹",652]
[null,null,null,null,null,null,null,null,null,null,null,null,null,"Dracaena marginata紅邊鐵樹","Dracaena marginata","紅邊鐵樹",653]
[null,null,null,null,null,null,null,null,null,null,null,null,null,"Dypsis lutescens (syn. Chrysalidocarpus lutescens) 散尾葵","Dypsis lutescens (syn. Chrysalidocarpus lutescens) ","散尾葵",654]
[null,null,null,null,null,null,null,null,null,null,null,null,null,"Elaeocarpus spp.杜英屬","Elaeocarpus spp.","杜英屬",655]
[null,null,null,null,null,null,null,null,null,null,null,null,null,"Scolopia buxifolia黃楊葉刺柊","Scolopia buxifolia","黃楊葉刺柊",656]
[null,null,null,null,null,null,null,null,null,null,null,null,null,"Engelhardia roxburghiana黃杞","Engelhardia roxburghiana","黃杞",657]
[null,null,null,null,null,null,null,null,null,null,null,null,null,"Erythrina spp.刺桐屬","Erythrina spp.","刺桐屬",658]
[null,null,null,null,null,null,null,null,null,null,null,null,null,"Senna alata翅莢決明","Senna alata","翅莢決明",659]
[null,null,null,null,null,null,null,null,null,null,null,null,null,"Senna bicapsularis雙莢決明","Senna bicapsularis","雙莢決明",660]
[null,null,null,null,null,null,null,null,null,null,null,null,null,"Eucalyptus spp.桉屬","Eucalyptus spp.","桉屬",661]
[null,null,null,null,null,null,null,null,null,null,null,null,null,"Senna spectabilis美麗決明(美洲槐)","Senna spectabilis","美麗決明(美洲槐)",662]
[null,null,null,null,null,null,null,null,null,null,null,null,null,"Eucalyptus urophylla尾葉桉","Eucalyptus urophylla","尾葉桉",663]
[null,null,null,null,null,null,null,null,null,null,null,null,null,"Euonymus glaber光葉衛矛","Euonymus glaber","光葉衛矛",664]
[null,null,null,null,null,null,null,null,null,null,null,null,null,"Euphorbia antiquorum火殃簕","Euphorbia antiquorum","火殃簕",665]
[null,null,null,null,null,null,null,null,null,null,null,null,null,"Euphorbia pulcherrima一品紅(聖誕樹)","Euphorbia pulcherrima","一品紅(聖誕樹)",666]
[null,null,null,null,null,null,null,null,null,null,null,null,null,"Stenocarpus spp.-","Stenocarpus spp.","-",667]
[null,null,null,null,null,null,null,null,null,null,null,null,null,"Eurya brevistyla短柱柃","Eurya brevistyla","短柱柃",668]
[null,null,null,null,null,null,null,null,null,null,null,null,null,"Eurya chinensis 米碎花 (崗茶)","Eurya chinensis ","米碎花 (崗茶)",669]
[null,null,null,null,null,null,null,null,null,null,null,null,null,"Strelitzia reginae鶴望蘭(天堂鳥蕉)","Strelitzia reginae","鶴望蘭(天堂鳥蕉)",670]
[null,null,null,null,null,null,null,null,null,null,null,null,null,"Eurya nitida 細齒葉柃","Eurya nitida ","細齒葉柃",671]
[null,null,null,null,null,null,null,null,null,null,null,null,null,"Symplocos spp.山礬屬","Symplocos spp.","山礬屬",672]
[null,null,null,null,null,null,null,null,null,null,null,null,null,"Symplocos congesta 密花山礬","Symplocos congesta ","密花山礬",673]
[null,null,null,null,null,null,null,null,null,null,null,null,null,"Ficus spp.榕屬","Ficus spp.","榕屬",674]
[null,null,null,null,null,null,null,null,null,null,null,null,null,"Symplocos crassifolia 厚葉山礬(厚皮灰木)","Symplocos crassifolia ","厚葉山礬(厚皮灰木)",675]
[null,null,null,null,null,null,null,null,null,null,null,null,null,"Symplocos glauca羊舌樹","Symplocos glauca","羊舌樹",676]
[null,null,null,null,null,null,null,null,null,null,null,null,null,"Ficus altissima 'Goldenedged'斑葉高山榕","Ficus altissima 'Goldenedged'","斑葉高山榕",677]
[null,null,null,null,null,null,null,null,null,null,null,null,null,"Symplocos lancifolia光葉山礬","Symplocos lancifolia","光葉山礬",678]
[null,null,null,null,null,null,null,null,null,null,null,null,null,"Ficus benjamina 'Comosa'黃果垂榕","Ficus benjamina 'Comosa'","黃果垂榕",679]
[null,null,null,null,null,null,null,null,null,null,null,null,null,"Ficus benjamina 'De Gantle'迪根圖垂榕","Ficus benjamina 'De Gantle'","迪根圖垂榕",680]
[null,null,null,null,null,null,null,null,null,null,null,null,null,"Ficus benjamina 'Golden Leaf'黃金垂榕","Ficus benjamina 'Golden Leaf'","黃金垂榕",681]
[null,null,null,null,null,null,null,null,null,null,null,null,null,"Syzygium formosanum紅牙赤楠","Syzygium formosanum","紅牙赤楠",682]
[null,null,null,null,null,null,null,null,null,null,null,null,null,"Ficus benjamina var. variegata花葉垂葉榕","Ficus benjamina var. variegata","花葉垂葉榕",683]
[null,null,null,null,null,null,null,null,null,null,null,null,null,"Ficus benjamina 'Variegata'班葉垂榕","Ficus benjamina 'Variegata'","班葉垂榕",684]
[null,null,null,null,null,null,null,null,null,null,null,null,null,"Ficus benjaminia 'Starlight'星光垂榕","Ficus benjaminia 'Starlight'","星光垂榕",685]
[null,null,null,null,null,null,null,null,null,null,null,null,null,"Ficus binnendijkii阿里垂榕","Ficus binnendijkii","阿里垂榕",686]
[null,null,null,null,null,null,null,null,null,null,null,null,null,"Ficus celebensis柳葉榕","Ficus celebensis","柳葉榕",687]
[null,null,null,null,null,null,null,null,null,null,null,null,null,"Ficus diversifolia槲寄生榕","Ficus diversifolia","槲寄生榕",688]
[null,null,null,null,null,null,null,null,null,null,null,null,null,"Tabebuia spp.黃鐘木屬","Tabebuia spp.","黃鐘木屬",689]
[null,null,null,null,null,null,null,null,null,null,null,null,null,"Ficus elastica 'Variegata'花葉印度橡樹","Ficus elastica 'Variegata'","花葉印度橡樹",690]
[null,null,null,null,null,null,null,null,null,null,null,null,null,"Ficus henryi尖葉榕","Ficus henryi","尖葉榕",691]
[null,null,null,null,null,null,null,null,null,null,null,null,null,"Tabebuia pentaphylla洋紅風鈴木 (紅花風鈴木)","Tabebuia pentaphylla","洋紅風鈴木 (紅花風鈴木)",692]
[null,null,null,null,null,null,null,null,null,null,null,null,null,"Ficus microcarpa 'Golden Leaf'黃榕","Ficus microcarpa 'Golden Leaf'","黃榕",693]
[null,null,null,null,null,null,null,null,null,null,null,null,null,"Ficus microcarpa 'Yellow Stripe'黃紋榕","Ficus microcarpa 'Yellow Stripe'","黃紋榕",694]
[null,null,null,null,null,null,null,null,null,null,null,null,null,"Tamarindus indica酸豆","Tamarindus indica","酸豆",695]
[null,null,null,null,null,null,null,null,null,null,null,null,null,"Terminalia spp.欖仁樹屬","Terminalia spp.","欖仁樹屬",696]
[null,null,null,null,null,null,null,null,null,null,null,null,null,"Ficus pandurata琴葉榕","Ficus pandurata","琴葉榕",697]
[null,null,null,null,null,null,null,null,null,null,null,null,null,"Ficus racemosa聚果榕","Ficus racemosa","聚果榕",698]
[null,null,null,null,null,null,null,null,null,null,null,null,null,"Terminalia chebula訶子","Terminalia chebula","訶子",699]
[null,null,null,null,null,null,null,null,null,null,null,null,null,"Firmiana spp.梧桐屬","Firmiana spp.","梧桐屬",700]
[null,null,null,null,null,null,null,null,null,null,null,null,null,"Tipuana tipu大班木","Tipuana tipu","大班木",701]
[null,null,null,null,null,null,null,null,null,null,null,null,null,"Trema orientalis異色山黃麻","Trema orientalis","異色山黃麻",702]
[null,null,null,null,null,null,null,null,null,null,null,null,null,"Garcinia spp.藤黃屬","Garcinia spp.","藤黃屬",703]
[null,null,null,null,null,null,null,null,null,null,null,null,null,"Trevesia palmata刺通草","Trevesia palmata","刺通草",704]
[null,null,null,null,null,null,null,null,null,null,null,null,null,"Tristania spp.-","Tristania spp.","-",705]
[null,null,null,null,null,null,null,null,null,null,null,null,null,"Gleditsia spp.皂莢屬","Gleditsia spp.","皂莢屬",706]
[null,null,null,null,null,null,null,null,null,null,null,null,null,"Tristaniopsis laurina月桂異紅膠木","Tristaniopsis laurina","月桂異紅膠木",707]
[null,null,null,null,null,null,null,null,null,null,null,null,null,"Ulmus pumila榆樹","Ulmus pumila","榆樹",708]
[null,null,null,null,null,null,null,null,null,null,null,null,null,"Glochidion hirsutum厚葉算盤子 ","Glochidion hirsutum","厚葉算盤子 ",709]
[null,null,null,null,null,null,null,null,null,null,null,null,null,"Glochidion puberum算盤子","Glochidion puberum","算盤子",710]
[null,null,null,null,null,null,null,null,null,null,null,null,null,"Glochidion zeylanicum香港算盤子","Glochidion zeylanicum","香港算盤子",711]
[null,null,null,null,null,null,null,null,null,null,null,null,null,"Grevillea spp.銀樺屬","Grevillea spp.","銀樺屬",712]
[null,null,null,null,null,null,null,null,null,null,null,null,null,"Hibiscus mutabilis木芙蓉(芙蓉花)","Hibiscus mutabilis","木芙蓉(芙蓉花)",713]
[null,null,null,null,null,null,null,null,null,null,null,null,null,"Wallichia disticha羽扇椰子","Wallichia disticha","羽扇椰子",714]
[null,null,null,null,null,null,null,null,null,null,null,null,null,"Hibiscus syriacus木槿","Hibiscus syriacus","木槿",715]
[null,null,null,null,null,null,null,null,null,null,null,null,null,"Hovenia acerba 拐棗 (枳椇)","Hovenia acerba ","拐棗 (枳椇)",716]
[null,null,null,null,null,null,null,null,null,null,null,null,null,"Woodfordia fruticosa蝦仔花","Woodfordia fruticosa","蝦仔花",717]
[null,null,null,null,null,null,null,null,null,null,null,null,null,"Xanthostemon chrysanthus金蒲桃","Xanthostemon chrysanthus","金蒲桃",718]
[null,null,null,null,null,null,null,null,null,null,null,null,null,"Yucca spp.絲蘭屬","Yucca spp.","絲蘭屬",719]
[null,null,null,null,null,null,null,null,null,null,null,null,null,"Yucca filamentosa絲蘭 ","Yucca filamentosa","絲蘭 ",720]
[null,null,null,null,null,null,null,null,null,null,null,null,null,"Zanthoxylum cuspidatum胡椒","Zanthoxylum cuspidatum","胡椒",721]
[null,null,null,null,null,null,null,null,null,null,null,null,null,"Archidendron spp.猴耳環屬","Archidendron spp.","猴耳環屬",722]
[null,null,null,null,null,null,null,null,null,null,null,null,null,"Ligustrum spp.女貞屬","Ligustrum spp.","女貞屬",723]
[null,null,null,null,null,null,null,null,null,null,null,null,null,"Liquidambar spp.楓香屬","Liquidambar spp.","楓香屬",724]
[null,null,null,null,null,null,null,null,null,null,null,null,null,"Acacia farnesiana金合歡","Acacia farnesiana","金合歡",725]
[null,null,null,null,null,null,null,null,null,null,null,null,null,"Acacia pennata羽葉金合歡","Acacia pennata","羽葉金合歡",726]
[null,null,null,null,null,null,null,null,null,null,null,null,null,"Altingia gracilipes細柄蕈樹","Altingia gracilipes","細柄蕈樹",727]
[null,null,null,null,null,null,null,null,null,null,null,null,null,"Aphanamixis grandifolia大葉山楝","Aphanamixis grandifolia","大葉山楝",728]
[null,null,null,null,null,null,null,null,null,null,null,null,null,"Bridelia insulana禾串樹(大葉逼迫仔)","Bridelia insulana","禾串樹(大葉逼迫仔)",729]
[null,null,null,null,null,null,null,null,null,null,null,null,null,"Calliandra haematocephala朱纓花(紅絨球)","Calliandra haematocephala","朱纓花(紅絨球)",730]
[null,null,null,null,null,null,null,null,null,null,null,null,null,"Callicarpa kochiana枇杷葉紫珠","Callicarpa kochiana","枇杷葉紫珠",731]
[null,null,null,null,null,null,null,null,null,null,null,null,null,"Callicarpa nudiflora裸花紫珠","Callicarpa nudiflora","裸花紫珠",732]
[null,null,null,null,null,null,null,null,null,null,null,null,null,"Casearia glomerata嘉賜樹","Casearia glomerata","嘉賜樹",733]
[null,null,null,null,null,null,null,null,null,null,null,null,null,"Celtis biondii紫彈朴","Celtis biondii","紫彈朴",734]
[null,null,null,null,null,null,null,null,null,null,null,null,null,"Cinnamomum validinerve粗脈桂","Cinnamomum validinerve","粗脈桂",735]
[null,null,null,null,null,null,null,null,null,null,null,null,null,"Cordyline fruticosa朱蕉(鐵樹)","Cordyline fruticosa","朱蕉(鐵樹)",736]
[null,null,null,null,null,null,null,null,null,null,null,null,null,"Diospyros vaccinioides Lindl.小果柿","Diospyros vaccinioides Lindl.","小果柿",737]
[null,null,null,null,null,null,null,null,null,null,null,null,null,"Diplospora dubia狗骨柴(三萼木)","Diplospora dubia","狗骨柴(三萼木)",738]
[null,null,null,null,null,null,null,null,null,null,null,null,null,"Distylium racemosum蚊母樹","Distylium racemosum","蚊母樹",739]
[null,null,null,null,null,null,null,null,null,null,null,null,null,"Dracaena reflexa百合竹","Dracaena reflexa","百合竹",740]
[null,null,null,null,null,null,null,null,null,null,null,null,null,"Duranta erecta假連翹","Duranta erecta","假連翹",741]
[null,null,null,null,null,null,null,null,null,null,null,null,null,"Euonymus ?tsoi? Merr.長葉衛矛","Euonymus ?tsoi? Merr.","長葉衛矛",742]
[null,null,null,null,null,null,null,null,null,null,null,null,null,"Euonymus alatus衛矛","Euonymus alatus","衛矛",743]
[null,null,null,null,null,null,null,null,null,null,null,null,null,"Euonymus laxiflorus疏花衛矛","Euonymus laxiflorus","疏花衛矛",744]
[null,null,null,null,null,null,null,null,null,null,null,null,null,"Euonymus nitidus中華衛矛","Euonymus nitidus","中華衛矛",745]
[null,null,null,null,null,null,null,null,null,null,null,null,null,"Eustigma? oblongifolium秀柱花","Eustigma? oblongifolium","秀柱花",746]
[null,null,null,null,null,null,null,null,null,null,null,null,null,"Fortunella hindsii山橘","Fortunella hindsii","山橘",747]
[null,null,null,null,null,null,null,null,null,null,null,null,null,"Helicia kwangtungensis廣東山龍眼","Helicia kwangtungensis","廣東山龍眼",748]
[null,null,null,null,null,null,null,null,null,null,null,null,null,"Helicia reticulata網脈山龍眼","Helicia reticulata","網脈山龍眼",749]
[null,null,null,null,null,null,null,null,null,null,null,null,null,"Ilex denticulata細齒冬青","Ilex denticulata","細齒冬青",750]
[null,null,null,null,null,null,null,null,null,null,null,null,null,"Ilex hanceana青茶冬青(青茶)","Ilex hanceana","青茶冬青(青茶)",751]
[null,null,null,null,null,null,null,null,null,null,null,null,null,"Ilex triflora三花冬青","Ilex triflora","三花冬青",752]
[null,null,null,null,null,null,null,null,null,null,null,null,null,"Ixonanthes reticulata黏木","Ixonanthes reticulata","黏木",753]
[null,null,null,null,null,null,null,null,null,null,null,null,null,"Lithocarpus konishii油葉柯","Lithocarpus konishii","油葉柯",754]
[null,null,null,null,null,null,null,null,null,null,null,null,null,"Macaranga denticulata中平樹","Macaranga denticulata","中平樹",755]
[null,null,null,null,null,null,null,null,null,null,null,null,null,"Maesa perlarius鯽魚膽","Maesa perlarius","鯽魚膽",756]
[null,null,null,null,null,null,null,null,null,null,null,null,null,"Melastoma sanguineum Sims毛菍","Melastoma sanguineum Sims","毛菍",757]
[null,null,null,null,null,null,null,null,null,null,null,null,null,"Meliosma rigida筆羅子(筆實子)","Meliosma rigida","筆羅子(筆實子)",758]
[null,null,null,null,null,null,null,null,null,null,null,null,null,"Neolitsea cambodiana var. glabra香港新木薑子","Neolitsea cambodiana var. glabra","香港新木薑子",759]
[null,null,null,null,null,null,null,null,null,null,null,null,null,"Picrasma quassioides苦樹","Picrasma quassioides","苦樹",760]
[null,null,null,null,null,null,null,null,null,null,null,null,null,"Pistacia chinensis黃連木","Pistacia chinensis","黃連木",761]
[null,null,null,null,null,null,null,null,null,null,null,null,null,"Prunus zippeliana大葉桂櫻","Prunus zippeliana","大葉桂櫻",762]
[null,null,null,null,null,null,null,null,null,null,null,null,null,"Psychotria asiatica L.九節(山大刀)","Psychotria asiatica L.","九節(山大刀)",763]
[null,null,null,null,null,null,null,null,null,null,null,null,null,"Symplocos lucida厚葉山礬(光亮山礬、厚皮灰木)","Symplocos lucida","厚葉山礬(光亮山礬、厚皮灰木)",764]
[null,null,null,null,null,null,null,null,null,null,null,null,null,"Syzygium buxifolium赤楠","Syzygium buxifolium","赤楠",765]
[null,null,null,null,null,null,null,null,null,null,null,null,null,"Syzygium championii灶地烏骨木(子凌蒲桃)","Syzygium championii","灶地烏骨木(子凌蒲桃)",766]
[null,null,null,null,null,null,null,null,null,null,null,null,null,"Syzygium kwangtungense廣東蒲桃","Syzygium kwangtungense","廣東蒲桃",767]
[null,null,null,null,null,null,null,null,null,null,null,null,null,"Tarenna attenuata假桂烏口樹(達崙木)","Tarenna attenuata","假桂烏口樹(達崙木)",768]
[null,null,null,null,null,null,null,null,null,null,null,null,null,"Ternstroemia luteoflora尖萼厚皮香","Ternstroemia luteoflora","尖萼厚皮香",769]
[null,null,null,null,null,null,null,null,null,null,null,null,null,"Yucca elephantipes象腳王蘭","Yucca elephantipes","象腳王蘭",770]
[null,null,null,null,null,null,null,null,null,null,null,null,null,"Livistona saribus大葉蒲葵","Livistona saribus","大葉蒲葵",771]
[null,null,null,null,null,null,null,null,null,null,null,null,null,"Aidia pycnantha多毛茜草樹","Aidia pycnantha","多毛茜草樹",772]
[null,null,null,null,null,null,null,null,null,null,null,null,null,"Nyctanthes arbor-tristis夜花","Nyctanthes arbor-tristis","夜花",773]
[null,null,null,null,null,null,null,null,null,null,null,null,null,"Barringtonia acutangula銳棱玉蕊","Barringtonia acutangula","銳棱玉蕊",774]
[null,null,null,null,null,null,null,null,null,null,null,null,null,"Elaeocarpus rugosus毛果杜英","Elaeocarpus rugosus","毛果杜英",775]
[null,null,null,null,null,null,null,null,null,null,null,null,null,"Tabernaemontana divaricata狗牙花","Tabernaemontana divaricata","狗牙花",776]
[null,null,null,null,null,null,null,null,null,null,null,null,null,"Dendrobenthamia hongkongensis (Hemsl.) Hutch香港四照花","Dendrobenthamia hongkongensis (Hemsl.) Hutch","香港四照花",777]
[null,null,null,null,null,null,null,null,null,null,null,null,null,"Ficus macrophylla澳洲大葉榕","Ficus macrophylla","澳洲大葉榕",778]
[null,null,null,null,null,null,null,null,null,null,null,null,null,"Cassia bakeriana花旗木","Cassia bakeriana","花旗木",779]
[null,null,null,null,null,null,null,null,null,null,null,null,null,"Michelia spp.含笑屬","Michelia spp.","含笑屬",780]
[null,null,null,null,null,null,null,null,null,null,null,null,null,"Michelia odora觀光木","Michelia odora","觀光木",781]
[null,null,null,null,null,null,null,null,null,null,null,null,null,"Acacia podalyriifolia珍珠合歡","Acacia podalyriifolia","珍珠合歡",782]
[null,null,null,null,null,null,null,null,null,null,null,null,null,"Dillenia turbinata大花五椏果","Dillenia turbinata","大花五椏果",783]
[null,null,null,null,null,null,null,null,null,null,null,null,null,"Aidia cochinchinensis茜樹 (越南香楠)","Aidia cochinchinensis","茜樹 (越南香楠)",784]
[null,null,null,null,null,null,null,null,null,null,null,null,null,"Helicia cochinchinensis小果山龍眼 (越南山龍眼)","Helicia cochinchinensis","小果山龍眼 (越南山龍眼)",785]
[null,null,null,null,null,null,null,null,null,null,null,null,null,"Antidesma spp.五月茶屬","Antidesma spp.","五月茶屬",786]
[null,null,null,null,null,null,null,null,null,null,null,null,null,"Antidesma montanum山地五月茶","Antidesma montanum","山地五月茶",787]
[null,null,null,null,null,null,null,null,null,null,null,null,null,"Cleidion brevipetiolatum棒柄花","Cleidion brevipetiolatum","棒柄花",788]
[null,null,null,null,null,null,null,null,null,null,null,null,null,"Drypetes littoralis濱海核果木","Drypetes littoralis","濱海核果木",789]
[null,null,null,null,null,null,null,null,null,null,null,null,null,"Glochidion spp.算盤子屬","Glochidion spp.","算盤子屬",790]
[null,null,null,null,null,null,null,null,null,null,null,null,null,"Hancea hookeriana粗毛野桐","Hancea hookeriana","粗毛野桐",791]
[null,null,null,null,null,null,null,null,null,null,null,null,null,"Macaranga spp.血桐屬","Macaranga spp.","血桐屬",792]
[null,null,null,null,null,null,null,null,null,null,null,null,null,"Macaranga lowii刺果血桐","Macaranga lowii","刺果血桐",793]
[null,null,null,null,null,null,null,null,null,null,null,null,null,"Macaranga sampsonii鼎湖血桐","Macaranga sampsonii","鼎湖血桐",794]
[null,null,null,null,null,null,null,null,null,null,null,null,null,"Celtis spp.朴屬","Celtis spp.","朴屬",795]
[null,null,null,null,null,null,null,null,null,null,null,null,null,"Aphananthe spp.糙葉樹屬","Aphananthe spp.","糙葉樹屬",796]
[null,null,null,null,null,null,null,null,null,null,null,null,null,"Aphananthe aspera糙葉樹","Aphananthe aspera","糙葉樹",797]
[null,null,null,null,null,null,null,null,null,null,null,null,null,"Myristica spp.肉荳蔻屬","Myristica spp.","肉荳蔻屬",798]
[null,null,null,null,null,null,null,null,null,null,null,null,null,"Myristica cagayanensis蘭嶼肉豆蔻 (台灣肉荳蔻)","Myristica cagayanensis","蘭嶼肉豆蔻 (台灣肉荳蔻)",799]
[null,null,null,null,null,null,null,null,null,null,null,null,null,"Myristica fragrans肉豆蔻","Myristica fragrans","肉豆蔻",800]
[null,null,null,null,null,null,null,null,null,null,null,null,null,"Cassia spp.決明屬","Cassia spp.","決明屬",801]
[null,null,null,null,null,null,null,null,null,null,null,null,null,"Colvillea racemosa總狀垂花楹 (黃金葡萄樹)","Colvillea racemosa","總狀垂花楹 (黃金葡萄樹)",802]
[null,null,null,null,null,null,null,null,null,null,null,null,null,"Butea spp.紫礦屬","Butea spp.","紫礦屬",803]
[null,null,null,null,null,null,null,null,null,null,null,null,null,"Butea monosperma紫礦 (膠蟲樹)","Butea monosperma","紫礦 (膠蟲樹)",804]
[null,null,null,null,null,null,null,null,null,null,null,null,null,"Caesalpinia ferrea豹木 (巴西鐵木)","Caesalpinia ferrea","豹木 (巴西鐵木)",805]
[null,null,null,null,null,null,null,null,null,null,null,null,null,"Dalbergia spp.黃檀屬","Dalbergia spp.","黃檀屬",806]
[null,null,null,null,null,null,null,null,null,null,null,null,null,"Dalbergia millettii香港黃檀","Dalbergia millettii","香港黃檀",807]
[null,null,null,null,null,null,null,null,null,null,null,null,null,"Dalbergia oliveri奧氏黃檀","Dalbergia oliveri","奧氏黃檀",808]
[null,null,null,null,null,null,null,null,null,null,null,null,null,"Livistona spp.蒲葵屬","Livistona spp.","蒲葵屬",809]
[null,null,null,null,null,null,null,null,null,null,null,null,null,"Ternstroemia spp.厚皮香屬","Ternstroemia spp.","厚皮香屬",810]
[null,null,null,null,null,null,null,null,null,null,null,null,null,"Ternstroemia microphylla小葉厚皮香","Ternstroemia microphylla","小葉厚皮香",811]
[null,null,null,null,null,null,null,null,null,null,null,null,null,"Ternstroemia kwangtungensis廣東厚皮香","Ternstroemia kwangtungensis","廣東厚皮香",812]
[null,null,null,null,null,null,null,null,null,null,null,null,null,"Ternstroemia japonica日本厚皮香","Ternstroemia japonica","日本厚皮香",813]
[null,null,null,null,null,null,null,null,null,null,null,null,null,"Callicarpa spp.紫珠屬","Callicarpa spp.","紫珠屬",814]
[null,null,null,null,null,null,null,null,null,null,null,null,null,"Gmelina spp.石梓屬","Gmelina spp.","石梓屬",815]
[null,null,null,null,null,null,null,null,null,null,null,null,null,"Gmelina philippensis刺石梓 (菲律賓石梓)","Gmelina philippensis","刺石梓 (菲律賓石梓)",816]
[null,null,null,null,null,null,null,null,null,null,null,null,null,"Acer laevigatum網脈槭 (光葉槭樹)","Acer laevigatum","網脈槭 (光葉槭樹)",817]
[null,null,null,null,null,null,null,null,null,null,null,null,null,"Rhus spp.鹽膚木屬","Rhus spp.","鹽膚木屬",818]
[null,null,null,null,null,null,null,null,null,null,null,null,null,"Dendropanax spp.樹參屬","Dendropanax spp.","樹參屬",819]
[null,null,null,null,null,null,null,null,null,null,null,null,null,"Dendropanax dentiger樹參","Dendropanax dentiger","樹參",820]
[null,null,null,null,null,null,null,null,null,null,null,null,null,"Palaquium spp.膠木屬","Palaquium spp.","膠木屬",821]
[null,null,null,null,null,null,null,null,null,null,null,null,null,"Palaquium formosanum大葉山欖","Palaquium formosanum","大葉山欖",822]
[null,null,null,null,null,null,null,null,null,null,null,null,null,"Carpinus spp.鵝耳櫪屬","Carpinus spp.","鵝耳櫪屬",823]
[null,null,null,null,null,null,null,null,null,null,null,null,null,"Carpinus insularis香港鵝耳櫪","Carpinus insularis","香港鵝耳櫪",824]
[null,null,null,null,null,null,null,null,null,null,null,null,null,"Calophyllum sspp.紅厚殼屬","Calophyllum sspp.","紅厚殼屬",825]
[null,null,null,null,null,null,null,null,null,null,null,null,null,"Calophyllum membranaceum薄葉紅厚殼 ","Calophyllum membranaceum","薄葉紅厚殼 ",826]
[null,null,null,null,null,null,null,null,null,null,null,null,null,"Cornus spp.山茱萸屬","Cornus spp.","山茱萸屬",827]
[null,null,null,null,null,null,null,null,null,null,null,null,null,"Cornus hongkongensis香港四照花","Cornus hongkongensis","香港四照花",828]
[null,null,null,null,null,null,null,null,null,null,null,null,null,"Casearia spp.嘉賜樹屬","Casearia spp.","嘉賜樹屬",829]
[null,null,null,null,null,null,null,null,null,null,null,null,null,"Casearia velutina毛嘉賜樹 ","Casearia velutina","毛嘉賜樹 ",830]
[null,null,null,null,null,null,null,null,null,null,null,null,null,"Illicium spp.八角屬","Illicium spp.","八角屬",831]
[null,null,null,null,null,null,null,null,null,null,null,null,null,"Illicium angustisepalum大嶼八角","Illicium angustisepalum","大嶼八角",832]
[null,null,null,null,null,null,null,null,null,null,null,null,null,"Lindera spp.山胡椒屬","Lindera spp.","山胡椒屬",833]
[null,null,null,null,null,null,null,null,null,null,null,null,null,"Lindera communis香葉樹","Lindera communis","香葉樹",834]
[null,null,null,null,null,null,null,null,null,null,null,null,null,"Lagerstroemia subcostata南紫薇 (九芎)","Lagerstroemia subcostata","南紫薇 (九芎)",835]
[null,null,null,null,null,null,null,null,null,null,null,null,null,"Aglaia odorata var. microphyllina?????","Aglaia odorata var. microphyllina","?????",836]
[null,null,null,null,null,null,null,null,null,null,null,null,null,"Bambusa vulgaris cv Wamin大佛肚竹","Bambusa vulgaris cv Wamin","大佛肚竹",837]
[null,null,null,null,null,null,null,null,null,null,null,null,null,"Camellia caudata長尾毛蕊茶","Camellia caudata","長尾毛蕊茶",838]
[null,null,null,null,null,null,null,null,null,null,null,null,null,"Camellia oleifera油茶","Camellia oleifera","油茶",839]
[null,null,null,null,null,null,null,null,null,null,null,null,null,"Citrus microcarpa 四季橘","Citrus microcarpa ","四季橘",840]
[null,null,null,null,null,null,null,null,null,null,null,null,null,"Codiaeum variegatum變葉木","Codiaeum variegatum","變葉木",841]
[null,null,null,null,null,null,null,null,null,null,null,null,null,"Croton tiglium巴豆","Croton tiglium","巴豆",842]
[null,null,null,null,null,null,null,null,null,null,null,null,null,"Dypsis decaryi三角椰子","Dypsis decaryi","三角椰子",843]
[null,null,null,null,null,null,null,null,null,null,null,null,null,"Euonymus tsoi Merr.長葉衛矛","Euonymus tsoi Merr.","長葉衛矛",844]
[null,null,null,null,null,null,null,null,null,null,null,null,null,"Eurya groffii崗柃","Eurya groffii","崗柃",845]
[null,null,null,null,null,null,null,null,null,null,null,null,null,"Eustigma oblongifolium秀柱花","Eustigma oblongifolium","秀柱花",846]
[null,null,null,null,null,null,null,null,null,null,null,null,null,"Flueggea virosa白飯樹","Flueggea virosa","白飯樹",847]
[null,null,null,null,null,null,null,null,null,null,null,null,null,"Fortunella margarita金橘","Fortunella margarita","金橘",848]
[null,null,null,null,null,null,null,null,null,null,null,null,null,"Glochidion lanceolarium (Roxb.) Voigt艾膠算盤子, 大葉算盤子","Glochidion lanceolarium (Roxb.) Voigt","艾膠算盤子, 大葉算盤子",849]
[null,null,null,null,null,null,null,null,null,null,null,null,null,"Hamelia patens長隔木/希美利","Hamelia patens","長隔木/希美利",850]
[null,null,null,null,null,null,null,null,null,null,null,null,null,"Ilex kwangtungensis廣東冬青","Ilex kwangtungensis","廣東冬青",851]
[null,null,null,null,null,null,null,null,null,null,null,null,null,"Kandelia Obovata秋茄","Kandelia Obovata","秋茄",852]
[null,null,null,null,null,null,null,null,null,null,null,null,null,"Machilus salicina柳葉潤楠","Machilus salicina","柳葉潤楠",853]
[null,null,null,null,null,null,null,null,null,null,null,null,null,"Millettia pulchra印度崖豆","Millettia pulchra","印度崖豆",854]
[null,null,null,null,null,null,null,null,null,null,null,null,null,"Nerium indicum mill紅花夾竹桃","Nerium indicum mill","紅花夾竹桃",855]
[null,null,null,null,null,null,null,null,null,null,null,null,null,"Polyalthia suberosa暗羅","Polyalthia suberosa","暗羅",856]
[null,null,null,null,null,null,null,null,null,null,null,null,null,"Rhaphiolepis lanceolata細葉石斑木","Rhaphiolepis lanceolata","細葉石斑木",857]
[null,null,null,null,null,null,null,null,null,null,null,null,null,"Schima wallichii紅木荷","Schima wallichii","紅木荷",858]
[null,null,null,null,null,null,null,null,null,null,null,null,null,"Strychnos nux-vomica馬錢子","Strychnos nux-vomica","馬錢子",859]
[null,null,null,null,null,null,null,null,null,null,null,null,null,"Vitex negundo黄荆","Vitex negundo","黄荆",860]
[null,null,null,null,null,null,null,null,null,null,null,null,null,"Vitex negundo L. var. cannabifolia牡荊","Vitex negundo L. var. cannabifolia","牡荊",861]
[null,null,null,null,null,null,null,null,null,null,null,null,null,"Araucaria columnaris柱狀南洋杉","Araucaria columnaris","柱狀南洋杉",862]

{"sheet":"Data","index":2,"n_rows":65,"n_cols":6,"rows_kept":65,"cut":false,"hidden":true,"merged":[]}
["Field Name","Field Value","Table","Table Field","Type","Remark"]
["Form1RefNo",{"$f":"IF(ISBLANK(F1RefNo_1), \"\", CONCATENATE(F1RefNo_1, \"-\", F1RefNo_2, \"-\", F1RefNo_3))","v":""}]
["Department",{"$f":"IF(ISBLANK(Dept), \"\", Dept)","v":""}]
["InspOfficer",{"$f":"IF(ISBLANK(InspOfficer), \"\", InspOfficer)","v":""}]
["InspOfficerPost",{"$f":"IF(ISBLANK(Post), \"\", Post)","v":""}]
["ContractNo",{"$f":"IF(ISBLANK(ContractNo), \"\", ContractNo)","v":""}]
["FileRef",{"$f":"IF(ISBLANK(FileRef), \"\", FileRef)","v":""}]
["InspDate",{"$f":"IF(ISBLANK(InspDate), \"\", InspDate)","v":""}]
["LastInspDate",{"$f":"IF(ISBLANK(LastInspDate), \"\", LastInspDate)","v":""}]
["InspFreq",{"$f":"INDEX(List!K2:K11, MATCH(InspFreq,List!J2:J11,0))","v":{"$error":"#N/A"}},null,null,null,{"$f":"IF(ISBLANK(InspFreq), \"\", InspFreq)","v":""}]
["MZone",{"$f":"IF(ISBLANK(MZone), \"\", MZone)","v":"1900-05-02"}]
["Szone",{"$f":"IF(ISBLANK(SZone), \"\", SZone)","v":""}]
["LocEng",{"$f":"IF(ISBLANK(LocEng), \"\", LocEng)","v":""}]
["LocChi",{"$f":"IF(ISBLANK(LocChi), \"\", LocChi)","v":""}]
["District",{"$f":"INDEX(List!AC2:AC19, MATCH(District,List!AB2:AB19,0))","v":{"$error":"#N/A"}},null,null,null,{"$f":"IF(ISBLANK(District), \"\", District)","v":""}]
["Category",{"$f":"INDEX(List!M2:M4, MATCH(Catagory,List!L2:L4,0))","v":{"$error":"#N/A"}},null,null,null,{"$f":"IF(ISBLANK(Catagory), \"\", Catagory)","v":""}]
["locRoadside",false]
["locPublic",false]
["locPlanter",false]
["locTreePit",false]
["locEstate",false]
["locDivider",false]
["locOthers",false]
["locGov",false]
["locUnleased",false]
["locCountoryPark",false]
["locSimar",false]
["locSimarRef",{"$f":"IF(ISBLANK(locSimarRef), \"\", locSimarRef)","v":""}]
["locOthersDesc",{"$f":"IF(ISBLANK(locOthersDesc), \"\", locOthersDesc)","v":""}]
["lampNum",{"$f":"IF(ISBLANK(lampNum), \"\", lampNum)","v":""}]
["TreeIDList",{"$f":"getBreakDownValue4Table(\"TableTree\", 1, \"1^4\")","v":""}]
["TreeSpeciesList",{"$f":"getBreakDownValue4Table2(\"TableTree\", 1, \"1^5\", List!N2:N284, List!Q2:Q284)","v":""},null,null,null,{"$f":"getBreakDownValue4Table(\"TableTree\", 1, \"1^5\")","v":""}]
["TreeSpeciesOthersList",{"$f":"getBreakDownValue4Table(\"TableTree\", 1, \"1^8\")","v":""}]
["TreeDBHList",{"$f":"getBreakDownValue4Table(\"TableTree\", 1, \"1^9\")","v":""}]
["TreeHeightList",{"$f":"getBreakDownValue4Table(\"TableTree\", 1, \"1^10\")","v":""}]
["CrownSpreadList",{"$f":"getBreakDownValue4Table(\"TableTree\", 1, \"1^12\")","v":""}]
["TreeStatusList",{"$f":"getBreakDownValue4Table2(\"TableTree\", 1, \"1^13\", List!R2:R5, List!S2:S5)","v":""},null,null,null,{"$f":"getBreakDownValue4Table(\"TableTree\", 1, \"1^13\")","v":""}]
["TreeConditionsList",{"$f":"getBreakDownValue4Table2(\"TableTree\", 1, \"1^14\", List!T2:T10, List!U2:U10)","v":""},null,null,null,{"$f":"getBreakDownValue4Table(\"TableTree\", 1, \"1^14\")","v":""}]
["TriageColourList",{"$f":"getBreakDownValue4Table2(\"TableTree\", 1, \"1^16\", List!V2:V7, List!W2:W7)","v":""},null,null,null,{"$f":"getBreakDownValue4Table(\"TableTree\", 1, \"1^16\")","v":""}]
["RemedialActionList",{"$f":"getBreakDownValue4Table2(\"TableTree\", 1, \"1^17\", List!X2:X11, List!Y2:Y11)","v":""},null,null,null,{"$f":"getBreakDownValue4Table(\"TableTree\", 1, \"1^17\")","v":""}]
["RemedialActionOtherList",{"$f":"getBreakDownValue4Table(\"TableTree\", 1, \"1^19\")","v":""}]
["CompletionDateList",{"$f":"getBreakDownValue4Table(\"TableTree\", 1, \"1^22\")","v":""}]
["XcoorList",{"$f":"getBreakDownValue4Table(\"TableTree\", 1, \"1^23\")","v":""}]
["YcoorList",{"$f":"getBreakDownValue4Table(\"TableTree\", 1, \"1^24\")","v":""}]
["OtherTreesSpeciesList",{"$f":"getBreakDownValue4Table2(\"TableOtherTrees\", 1, \"1^3\", List!N2:N284, List!Q2:Q284)","v":""},null,null,null,{"$f":"getBreakDownValue4Table(\"TableOtherTrees\", 1, \"1^3\")","v":""}]
["OtherTreesSpeciesOthersList",{"$f":"getBreakDownValue4Table(\"TableOtherTrees\", 1, \"1^10\")","v":""}]
["OtherTreesQtyList",{"$f":"getBreakDownValue4Table(\"TableOtherTrees\", 1, \"1^13\")","v":""}]
["OtherTreesHeightFromList",{"$f":"getBreakDownValue4Table(\"TableOtherTrees\", 1, \"1^14\")","v":""}]
["OtherTreesHeightToList",{"$f":"getBreakDownValue4Table(\"TableOtherTrees\", 1, \"1^17\")","v":""}]
["OtherTreesConditionsList",{"$f":"getBreakDownValue4Table2(\"TableOtherTrees\", 1, \"1^19\", List!T2:T10, List!U2:U10)","v":""},null,null,null,{"$f":"getBreakDownValue4Table(\"TableOtherTrees\", 1, \"1^18\")","v":""}]
["OverallRemarks",{"$f":"IF(ISBLANK(OverallRemarks), \"\", OverallRemarks)","v":""}]
["TotalA",{"$f":"IF(ISBLANK(TotalA), \"\", TotalA)","v":0}]
["TotalB",{"$f":"IF(ISBLANK(TotalB), \"\", TotalB)","v":0}]
["TotalAB",{"$f":"IF(ISBLANK(TotalAB), \"\", TotalAB)","v":0}]
["SumBlack",{"$f":"IF(ISBLANK(SumBlack), \"\", SumBlack)","v":0}]
["SumRed",{"$f":"IF(ISBLANK(SumRed), \"\", SumRed)","v":0}]
["SumOrange",{"$f":"IF(ISBLANK(SumOrange), \"\", SumOrange)","v":0}]
["SumYellow",{"$f":"IF(ISBLANK(SumYellow), \"\", SumYellow)","v":0}]
["SumNone",{"$f":"IF(ISBLANK(SumNone), \"\", SumNone)","v":0},null,null,null,{"$f":"getBreakDownValue4Table(\"TableAttachment\", 1, \"1^3\")","v":""}]
["AttachTypeList",{"$f":"getBreakDownValue4Table2(\"TableAttachment\", 1, \"1^3\", List!Z2:Z10, List!AA2:AA10)","v":""}]
["AttachmentTreeIDList",{"$f":"getBreakDownValue4Table(\"TableAttachment\", 1, \"1^5\")","v":""}]
["AttachmentIsProfileList",{"$f":"getBreakDownValue4Table(\"TableAttachment\", 1, \"1^8\")","v":""}]
["AttachFileList",{"$f":"getBreakDownValue4Table(\"TableAttachment\", 1, \"1^11\")","v":""}]
["AttachDescList",{"$f":"getBreakDownValue4Table(\"TableAttachment\", 1, \"1^17\")","v":""}]
["UploadDate",{"$f":"IF(ISBLANK(UploadDate), \"\", UploadDate)","v":""}]